Workbook

Sheet Welcome
C1: Refresh the workbook whenever you want to get the most up-to-date data for this template. Go to the Data tab > Refresh All.
B3: Periodic table
B4: Whether you're working on a school project or simply curious about science, this list will help you discover the fundamentals of chemistry.
C7: Search and interact with the periodic table | I7: Compare elemental properties | O7: Track chemical compounds
D8: Periodic table | J8: Elements | P8: Compound list
C12: Explore chemical compound properties | I12: Show your understanding | O12: Do more with data types
D13: Compound properties | J13: Practice | P13: Do more
B16: Give feedback to help us improve this template

Sheet Periodic table
B3: Periodic table
B4: Use the search and property filters to explore interesting patterns and highlight data.
C5: Group | D5: 1 | F5: 2 | H5: 3 | J5: 4 | L5: 5 | N5: 6 | P5: 7 | R5: 8 | T5: 9 | V5: 10 | X5: 11 | Z5: 12 | AB5: 13 | AD5: 14 | AF5: 15 | AH5: 16 | AJ5: 17 | AL5: 18
B6: Period
D7: 1 | AL7: 2
B8: 1 | D8: H | AL8: He
D9: =_xlfn.XLOOKUP(D8,Table1[Atomic symbol],Table1[Element]) ->  | AL9: =_xlfn.SINGLE(_xlfn.XLOOKUP(AL8,Table1[Atomic symbol],Table1[Element])) -> 
D10: =IFERROR(_xlfn.FIELDVALUE(_xlfn.XLOOKUP(D8,Table1[Atomic symbol],Table1[Element]),pt_color),"") -> 75 | J10: Search the periodic table: | T10: Select a property to highlight in the table: | AL10: =IFERROR(_xlfn.FIELDVALUE(_xlfn.XLOOKUP(AL8,Table1[Atomic symbol],Table1[Element]),pt_color),"") -> 23.000
D12: 3 | F12: 4 | AB12: 5 | AD12: 6 | AF12: 7 | AH12: 8 | AJ12: 9 | AL12: 10
B13: 2 | D13: Li | F13: Be | T13: Universe Abundance | AB13: B | AD13: C | AF13: N | AH13: O | AJ13: F | AL13: Ne
D14: =_xlfn.XLOOKUP(D13,Table1[Atomic symbol],Table1[Element]) ->  | F14: =_xlfn.XLOOKUP(F13,Table1[Atomic symbol],Table1[Element]) ->  | J14: Enter a name, symbol, or number. | AB14: =_xlfn.SINGLE(_xlfn.XLOOKUP(AB13,Table1[Atomic symbol],Table1[Element])) ->  | AD14: =_xlfn.SINGLE(_xlfn.XLOOKUP(AD13,Table1[Atomic symbol],Table1[Element])) ->  | AF14: =_xlfn.SINGLE(_xlfn.XLOOKUP(AF13,Table1[Atomic symbol],Table1[Element])) ->  | AH14: =_xlfn.SINGLE(_xlfn.XLOOKUP(AH13,Table1[Atomic symbol],Table1[Element])) ->  | AJ14: =_xlfn.SINGLE(_xlfn.XLOOKUP(AJ13,Table1[Atomic symbol],Table1[Element])) ->  | AL14: =_xlfn.SINGLE(_xlfn.XLOOKUP(AL13,Table1[Atomic symbol],Table1[Element])) -> 
D15: =IFERROR(_xlfn.FIELDVALUE(_xlfn.XLOOKUP(D13,Table1[Atomic symbol],Table1[Element]),pt_color),"") -> 6e-07 | F15: =IFERROR(_xlfn.FIELDVALUE(_xlfn.XLOOKUP(F13,Table1[Atomic symbol],Table1[Element]),pt_color),"") -> 0.000 | AB15: =IFERROR(_xlfn.FIELDVALUE(_xlfn.XLOOKUP(AB13,Table1[Atomic symbol],Table1[Element]),pt_color),"") -> 0.000 | AD15: =IFERROR(_xlfn.FIELDVALUE(_xlfn.XLOOKUP(AD13,Table1[Atomic symbol],Table1[Element]),pt_color),"") -> 0.500 | AF15: =IFERROR(_xlfn.FIELDVALUE(_xlfn.XLOOKUP(AF13,Table1[Atomic symbol],Table1[Element]),pt_color),"") -> 0.100 | AH15: =IFERROR(_xlfn.FIELDVALUE(_xlfn.XLOOKUP(AH13,Table1[Atomic symbol],Table1[Element]),pt_color),"") -> 1.000 | AJ15: =IFERROR(_xlfn.FIELDVALUE(_xlfn.XLOOKUP(AJ13,Table1[Atomic symbol],Table1[Element]),pt_color),"") -> 0.000 | AL15: =IFERROR(_xlfn.FIELDVALUE(_xlfn.XLOOKUP(AL13,Table1[Atomic symbol],Table1[Element]),pt_color),"") -> 0.130
D17: 11 | F17: 12 | AB17: 13 | AD17: 14 | AF17: 15 | AH17: 16 | AJ17: 17 | AL17: 18
B18: 3 | D18: Na | F18: Mg | AB18: Al | AD18: Si | AF18: P | AH18: S | AJ18: Cl | AL18: Ar
D19: =_xlfn.SINGLE(_xlfn.XLOOKUP(D18,Table1[Atomic symbol],Table1[Element])) ->  | F19: =_xlfn.SINGLE(_xlfn.XLOOKUP(F18,Table1[Atomic symbol],Table1[Element])) ->  | AB19: =_xlfn.SINGLE(_xlfn.XLOOKUP(AB18,Table1[Atomic symbol],Table1[Element])) ->  | AD19: =_xlfn.SINGLE(_xlfn.XLOOKUP(AD18,Table1[Atomic symbol],Table1[Element])) ->  | AF19: =_xlfn.SINGLE(_xlfn.XLOOKUP(AF18,Table1[Atomic symbol],Table1[Element])) ->  | AH19: =_xlfn.SINGLE(_xlfn.XLOOKUP(AH18,Table1[Atomic symbol],Table1[Element])) ->  | AJ19: =_xlfn.SINGLE(_xlfn.XLOOKUP(AJ18,Table1[Atomic symbol],Table1[Element])) ->  | AL19: =_xlfn.SINGLE(_xlfn.XLOOKUP(AL18,Table1[Atomic symbol],Table1[Element])) -> 
D20: =IFERROR(_xlfn.FIELDVALUE(_xlfn.XLOOKUP(D18,Table1[Atomic symbol],Table1[Element]),pt_color),"") -> 0.002 | F20: =IFERROR(_xlfn.FIELDVALUE(_xlfn.XLOOKUP(F18,Table1[Atomic symbol],Table1[Element]),pt_color),"") -> 0.060 | AB20: =IFERROR(_xlfn.FIELDVALUE(_xlfn.XLOOKUP(AB18,Table1[Atomic symbol],Table1[Element]),pt_color),"") -> 0.005 | AD20: =IFERROR(_xlfn.FIELDVALUE(_xlfn.XLOOKUP(AD18,Table1[Atomic symbol],Table1[Element]),pt_color),"") -> 0.070 | AF20: =IFERROR(_xlfn.FIELDVALUE(_xlfn.XLOOKUP(AF18,Table1[Atomic symbol],Table1[Element]),pt_color),"") -> 0.001 | AH20: =IFERROR(_xlfn.FIELDVALUE(_xlfn.XLOOKUP(AH18,Table1[Atomic symbol],Table1[Element]),pt_color),"") -> 0.050 | AJ20: =IFERROR(_xlfn.FIELDVALUE(_xlfn.XLOOKUP(AJ18,Table1[Atomic symbol],Table1[Element]),pt_color),"") -> 0.000 | AL20: =IFERROR(_xlfn.FIELDVALUE(_xlfn.XLOOKUP(AL18,Table1[Atomic symbol],Table1[Element]),pt_color),"") -> 0.020
D22: 19 | F22: 20 | H22: 21 | J22: 22 | L22: 23 | N22: 24 | P22: 25 | R22: 26 | T22: 27 | V22: 28 | X22: 29 | Z22: 30 | AB22: 31 | AD22: 32 | AF22: 33 | AH22: 34 | AJ22: 35 | AL22: 36
B23: 4 | D23: K | F23: Ca | H23: Sc | J23: Ti | L23: V | N23: Cr | P23: Mn | R23: Fe | T23: Co | V23: Ni | X23: Cu | Z23: Zn | AB23: Ga | AD23: Ge | AF23: As | AH23: Se | AJ23: Br | AL23: Kr
D24: =_xlfn.SINGLE(_xlfn.XLOOKUP(D23,Table1[Atomic symbol],Table1[Element])) ->  | F24: =_xlfn.SINGLE(_xlfn.XLOOKUP(F23,Table1[Atomic symbol],Table1[Element])) ->  | H24: =_xlfn.SINGLE(_xlfn.XLOOKUP(H23,Table1[Atomic symbol],Table1[Element])) ->  | J24: =_xlfn.SINGLE(_xlfn.XLOOKUP(J23,Table1[Atomic symbol],Table1[Element])) ->  | L24: =_xlfn.SINGLE(_xlfn.XLOOKUP(L23,Table1[Atomic symbol],Table1[Element])) ->  | N24: =_xlfn.SINGLE(_xlfn.XLOOKUP(N23,Table1[Atomic symbol],Table1[Element])) ->  | P24: =_xlfn.SINGLE(_xlfn.XLOOKUP(P23,Table1[Atomic symbol],Table1[Element])) ->  | R24: =_xlfn.SINGLE(_xlfn.XLOOKUP(R23,Table1[Atomic symbol],Table1[Element])) ->  | T24: =_xlfn.SINGLE(_xlfn.XLOOKUP(T23,Table1[Atomic symbol],Table1[Element])) ->  | V24: =_xlfn.SINGLE(_xlfn.XLOOKUP(V23,Table1[Atomic symbol],Table1[Element])) ->  | X24: =_xlfn.SINGLE(_xlfn.XLOOKUP(X23,Table1[Atomic symbol],Table1[Element])) ->  | Z24: =_xlfn.SINGLE(_xlfn.XLOOKUP(Z23,Table1[Atomic symbol],Table1[Element])) ->  | AB24: =_xlfn.SINGLE(_xlfn.XLOOKUP(AB23,Table1[Atomic symbol],Table1[Element])) ->  | AD24: =_xlfn.SINGLE(_xlfn.XLOOKUP(AD23,Table1[Atomic symbol],Table1[Element])) ->  | AF24: =_xlfn.SINGLE(_xlfn.XLOOKUP(AF23,Table1[Atomic symbol],Table1[Element])) ->  | AH24: =_xlfn.SINGLE(_xlfn.XLOOKUP(AH23,Table1[Atomic symbol],Table1[Element])) ->  | AJ24: =_xlfn.SINGLE(_xlfn.XLOOKUP(AJ23,Table1[Atomic symbol],Table1[Element])) ->  | AL24: =_xlfn.SINGLE(_xlfn.XLOOKUP(AL23,Table1[Atomic symbol],Table1[Element])) -> 
D25: =IFERROR(_xlfn.FIELDVALUE(_xlfn.XLOOKUP(D23,Table1[Atomic symbol],Table1[Element]),pt_color),"") -> 0.000 | F25: =IFERROR(_xlfn.FIELDVALUE(_xlfn.XLOOKUP(F23,Table1[Atomic symbol],Table1[Element]),pt_color),"") -> 0.007 | H25: =IFERROR(_xlfn.FIELDVALUE(_xlfn.XLOOKUP(H23,Table1[Atomic symbol],Table1[Element]),pt_color),"") -> 0.000 | J25: =IFERROR(_xlfn.FIELDVALUE(_xlfn.XLOOKUP(J23,Table1[Atomic symbol],Table1[Element]),pt_color),"") -> 0.000 | L25: =IFERROR(_xlfn.FIELDVALUE(_xlfn.XLOOKUP(L23,Table1[Atomic symbol],Table1[Element]),pt_color),"") -> 0.000 | N25: =IFERROR(_xlfn.FIELDVALUE(_xlfn.XLOOKUP(N23,Table1[Atomic symbol],Table1[Element]),pt_color),"") -> 0.002 | P25: =IFERROR(_xlfn.FIELDVALUE(_xlfn.XLOOKUP(P23,Table1[Atomic symbol],Table1[Element]),pt_color),"") -> 0.001 | R25: =IFERROR(_xlfn.FIELDVALUE(_xlfn.XLOOKUP(R23,Table1[Atomic symbol],Table1[Element]),pt_color),"") -> 0.110 | T25: =IFERROR(_xlfn.FIELDVALUE(_xlfn.XLOOKUP(T23,Table1[Atomic symbol],Table1[Element]),pt_color),"") -> 0.000 | V25: =IFERROR(_xlfn.FIELDVALUE(_xlfn.XLOOKUP(V23,Table1[Atomic symbol],Table1[Element]),pt_color),"") -> 0.006 | X25: =IFERROR(_xlfn.FIELDVALUE(_xlfn.XLOOKUP(X23,Table1[Atomic symbol],Table1[Element]),pt_color),"") -> 0.000 | Z25: =IFERROR(_xlfn.FIELDVALUE(_xlfn.XLOOKUP(Z23,Table1[Atomic symbol],Table1[Element]),pt_color),"") -> 0.000 | AB25: =IFERROR(_xlfn.FIELDVALUE(_xlfn.XLOOKUP(AB23,Table1[Atomic symbol],Table1[Element]),pt_color),"") -> 0.000 | AD25: =IFERROR(_xlfn.FIELDVALUE(_xlfn.XLOOKUP(AD23,Table1[Atomic symbol],Table1[Element]),pt_color),"") -> 0.000 | AF25: =IFERROR(_xlfn.FIELDVALUE(_xlfn.XLOOKUP(AF23,Table1[Atomic symbol],Table1[Element]),pt_color),"") -> 0.000 | AH25: =IFERROR(_xlfn.FIELDVALUE(_xlfn.XLOOKUP(AH23,Table1[Atomic symbol],Table1[Element]),pt_color),"") -> 0.000 | AJ25: =IFERROR(_xlfn.FIELDVALUE(_xlfn.XLOOKUP(AJ23,Table1[Atomic symbol],Table1[Element]),pt_color),"") -> 0.000 | AL25: =IFERROR(_xlfn.FIELDVALUE(_xlfn.XLOOKUP(AL23,Table1[Atomic symbol],Table1[Element]),pt_color),"") -> 0.000
D27: 37 | F27: 38 | H27: 39 | J27: 40 | L27: 41 | N27: 42 | P27: 43 | R27: 44 | T27: 45 | V27: 46 | X27: 47 | Z27: 48 | AB27: 49 | AD27: 50 | AF27: 51 | AH27: 52 | AJ27: 53 | AL27: 54
B28: 5 | D28: Rb | F28: Sr | H28: Y | J28: Zr | L28: Nb | N28: Mo | P28: Tc | R28: Ru | T28: Rh | V28: Pd | X28: Ag | Z28: Cd | AB28: In | AD28: Sn | AF28: Sb | AH28: Te | AJ28: I | AL28: Xe
D29: =_xlfn.SINGLE(_xlfn.XLOOKUP(D28,Table1[Atomic symbol],Table1[Element])) ->  | F29: =_xlfn.SINGLE(_xlfn.XLOOKUP(F28,Table1[Atomic symbol],Table1[Element])) ->  | H29: =_xlfn.SINGLE(_xlfn.XLOOKUP(H28,Table1[Atomic symbol],Table1[Element])) ->  | J29: =_xlfn.SINGLE(_xlfn.XLOOKUP(J28,Table1[Atomic symbol],Table1[Element])) ->  | L29: =_xlfn.SINGLE(_xlfn.XLOOKUP(L28,Table1[Atomic symbol],Table1[Element])) ->  | N29: =_xlfn.SINGLE(_xlfn.XLOOKUP(N28,Table1[Atomic symbol],Table1[Element])) ->  | P29: =_xlfn.SINGLE(_xlfn.XLOOKUP(P28,Table1[Atomic symbol],Table1[Element])) ->  | R29: =_xlfn.SINGLE(_xlfn.XLOOKUP(R28,Table1[Atomic symbol],Table1[Element])) ->  | T29: =_xlfn.SINGLE(_xlfn.XLOOKUP(T28,Table1[Atomic symbol],Table1[Element])) ->  | V29: =_xlfn.SINGLE(_xlfn.XLOOKUP(V28,Table1[Atomic symbol],Table1[Element])) ->  | X29: =_xlfn.SINGLE(_xlfn.XLOOKUP(X28,Table1[Atomic symbol],Table1[Element])) ->  | Z29: =_xlfn.SINGLE(_xlfn.XLOOKUP(Z28,Table1[Atomic symbol],Table1[Element])) ->  | AB29: =_xlfn.SINGLE(_xlfn.XLOOKUP(AB28,Table1[Atomic symbol],Table1[Element])) ->  | AD29: =_xlfn.SINGLE(_xlfn.XLOOKUP(AD28,Table1[Atomic symbol],Table1[Element])) ->  | AF29: =_xlfn.SINGLE(_xlfn.XLOOKUP(AF28,Table1[Atomic symbol],Table1[Element])) ->  | AH29: =_xlfn.SINGLE(_xlfn.XLOOKUP(AH28,Table1[Atomic symbol],Table1[Element])) ->  | AJ29: =_xlfn.SINGLE(_xlfn.XLOOKUP(AJ28,Table1[Atomic symbol],Table1[Element])) ->  | AL29: =_xlfn.SINGLE(_xlfn.XLOOKUP(AL28,Table1[Atomic symbol],Table1[Element])) -> 
D30: =IFERROR(_xlfn.FIELDVALUE(_xlfn.XLOOKUP(D28,Table1[Atomic symbol],Table1[Element]),pt_color),"") -> 0.000 | F30: =IFERROR(_xlfn.FIELDVALUE(_xlfn.XLOOKUP(F28,Table1[Atomic symbol],Table1[Element]),pt_color),"") -> 0.000 | H30: =IFERROR(_xlfn.FIELDVALUE(_xlfn.XLOOKUP(H28,Table1[Atomic symbol],Table1[Element]),pt_color),"") -> 0.000 | J30: =IFERROR(_xlfn.FIELDVALUE(_xlfn.XLOOKUP(J28,Table1[Atomic symbol],Table1[Element]),pt_color),"") -> 0.000 | L30: =IFERROR(_xlfn.FIELDVALUE(_xlfn.XLOOKUP(L28,Table1[Atomic symbol],Table1[Element]),pt_color),"") -> 0.000 | N30: =IFERROR(_xlfn.FIELDVALUE(_xlfn.XLOOKUP(N28,Table1[Atomic symbol],Table1[Element]),pt_color),"") -> 0.000 | P30: =IFERROR(_xlfn.FIELDVALUE(_xlfn.XLOOKUP(P28,Table1[Atomic symbol],Table1[Element]),pt_color),"") ->  | R30: =IFERROR(_xlfn.FIELDVALUE(_xlfn.XLOOKUP(R28,Table1[Atomic symbol],Table1[Element]),pt_color),"") -> 0.000 | T30: =IFERROR(_xlfn.FIELDVALUE(_xlfn.XLOOKUP(T28,Table1[Atomic symbol],Table1[Element]),pt_color),"") -> 0.000 | V30: =IFERROR(_xlfn.FIELDVALUE(_xlfn.XLOOKUP(V28,Table1[Atomic symbol],Table1[Element]),pt_color),"") -> 0.000 | X30: =IFERROR(_xlfn.FIELDVALUE(_xlfn.XLOOKUP(X28,Table1[Atomic symbol],Table1[Element]),pt_color),"") -> 0.000 | Z30: =IFERROR(_xlfn.FIELDVALUE(_xlfn.XLOOKUP(Z28,Table1[Atomic symbol],Table1[Element]),pt_color),"") -> 0.000 | AB30: =IFERROR(_xlfn.FIELDVALUE(_xlfn.XLOOKUP(AB28,Table1[Atomic symbol],Table1[Element]),pt_color),"") -> 0.000 | AD30: =IFERROR(_xlfn.FIELDVALUE(_xlfn.XLOOKUP(AD28,Table1[Atomic symbol],Table1[Element]),pt_color),"") -> 0.000 | AF30: =IFERROR(_xlfn.FIELDVALUE(_xlfn.XLOOKUP(AF28,Table1[Atomic symbol],Table1[Element]),pt_color),"") -> 0.000 | AH30: =IFERROR(_xlfn.FIELDVALUE(_xlfn.XLOOKUP(AH28,Table1[Atomic symbol],Table1[Element]),pt_color),"") -> 0.000 | AJ30: =IFERROR(_xlfn.FIELDVALUE(_xlfn.XLOOKUP(AJ28,Table1[Atomic symbol],Table1[Element]),pt_color),"") -> 0.000 | AL30: =IFERROR(_xlfn.FIELDVALUE(_xlfn.XLOOKUP(AL28,Table1[Atomic symbol],Table1[Element]),pt_color),"") -> 0.000
D32: 55 | F32: 56 | J32: 72 | L32: 73 | N32: 74 | P32: 75 | R32: 76 | T32: 77 | V32: 78 | X32: 79 | Z32: 80 | AB32: 81 | AD32: 82 | AF32: 83 | AH32: 84 | AJ32: 85 | AL32: 86
B33: 6 | D33: Cs | F33: Ba | J33: Hf | L33: Ta | N33: W | P33: Re | R33: Os | T33: Ir | V33: Pt | X33: Au | Z33: Hg | AB33: Tl | AD33: Pb | AF33: Bi | AH33: Po | AJ33: At | AL33: Rn
D34: =_xlfn.SINGLE(_xlfn.XLOOKUP(D33,Table1[Atomic symbol],Table1[Element])) ->  | F34: =_xlfn.SINGLE(_xlfn.XLOOKUP(F33,Table1[Atomic symbol],Table1[Element])) ->  | J34: =_xlfn.SINGLE(_xlfn.XLOOKUP(J33,Table1[Atomic symbol],Table1[Element])) ->  | L34: =_xlfn.SINGLE(_xlfn.XLOOKUP(L33,Table1[Atomic symbol],Table1[Element])) ->  | N34: =_xlfn.SINGLE(_xlfn.XLOOKUP(N33,Table1[Atomic symbol],Table1[Element])) ->  | P34: =_xlfn.SINGLE(_xlfn.XLOOKUP(P33,Table1[Atomic symbol],Table1[Element])) ->  | R34: =_xlfn.SINGLE(_xlfn.XLOOKUP(R33,Table1[Atomic symbol],Table1[Element])) ->  | T34: =_xlfn.SINGLE(_xlfn.XLOOKUP(T33,Table1[Atomic symbol],Table1[Element])) ->  | V34: =_xlfn.SINGLE(_xlfn.XLOOKUP(V33,Table1[Atomic symbol],Table1[Element])) ->  | X34: =_xlfn.SINGLE(_xlfn.XLOOKUP(X33,Table1[Atomic symbol],Table1[Element])) ->  | Z34: =_xlfn.SINGLE(_xlfn.XLOOKUP(Z33,Table1[Atomic symbol],Table1[Element])) ->  | AB34: =_xlfn.SINGLE(_xlfn.XLOOKUP(AB33,Table1[Atomic symbol],Table1[Element])) ->  | AD34: =_xlfn.SINGLE(_xlfn.XLOOKUP(AD33,Table1[Atomic symbol],Table1[Element])) ->  | AF34: =_xlfn.SINGLE(_xlfn.XLOOKUP(AF33,Table1[Atomic symbol],Table1[Element])) ->  | AH34: =_xlfn.SINGLE(_xlfn.XLOOKUP(AH33,Table1[Atomic symbol],Table1[Element])) ->  | AJ34: =_xlfn.SINGLE(_xlfn.XLOOKUP(AJ33,Table1[Atomic symbol],Table1[Element])) ->  | AL34: =_xlfn.SINGLE(_xlfn.XLOOKUP(AL33,Table1[Atomic symbol],Table1[Element])) -> 
D35: =IFERROR(_xlfn.FIELDVALUE(_xlfn.XLOOKUP(D33,Table1[Atomic symbol],Table1[Element]),pt_color),"") -> 0.000 | F35: =IFERROR(_xlfn.FIELDVALUE(_xlfn.XLOOKUP(F33,Table1[Atomic symbol],Table1[Element]),pt_color),"") -> 0.000 | J35: =IFERROR(_xlfn.FIELDVALUE(_xlfn.XLOOKUP(J33,Table1[Atomic symbol],Table1[Element]),pt_color),"") -> 0.000 | L35: =IFERROR(_xlfn.FIELDVALUE(_xlfn.XLOOKUP(L33,Table1[Atomic symbol],Table1[Element]),pt_color),"") -> 0.000 | N35: =IFERROR(_xlfn.FIELDVALUE(_xlfn.XLOOKUP(N33,Table1[Atomic symbol],Table1[Element]),pt_color),"") -> 0.000 | P35: =IFERROR(_xlfn.FIELDVALUE(_xlfn.XLOOKUP(P33,Table1[Atomic symbol],Table1[Element]),pt_color),"") -> 0.000 | R35: =IFERROR(_xlfn.FIELDVALUE(_xlfn.XLOOKUP(R33,Table1[Atomic symbol],Table1[Element]),pt_color),"") -> 0.000 | T35: =IFERROR(_xlfn.FIELDVALUE(_xlfn.XLOOKUP(T33,Table1[Atomic symbol],Table1[Element]),pt_color),"") -> 0.000 | V35: =IFERROR(_xlfn.FIELDVALUE(_xlfn.XLOOKUP(V33,Table1[Atomic symbol],Table1[Element]),pt_color),"") -> 0.000 | X35: =IFERROR(_xlfn.FIELDVALUE(_xlfn.XLOOKUP(X33,Table1[Atomic symbol],Table1[Element]),pt_color),"") -> 0.000 | Z35: =IFERROR(_xlfn.FIELDVALUE(_xlfn.XLOOKUP(Z33,Table1[Atomic symbol],Table1[Element]),pt_color),"") -> 0.000 | AB35: =IFERROR(_xlfn.FIELDVALUE(_xlfn.XLOOKUP(AB33,Table1[Atomic symbol],Table1[Element]),pt_color),"") -> 0.000 | AD35: =IFERROR(_xlfn.FIELDVALUE(_xlfn.XLOOKUP(AD33,Table1[Atomic symbol],Table1[Element]),pt_color),"") -> 0.000 | AF35: =IFERROR(_xlfn.FIELDVALUE(_xlfn.XLOOKUP(AF33,Table1[Atomic symbol],Table1[Element]),pt_color),"") -> 0.000 | AH35: =IFERROR(_xlfn.FIELDVALUE(_xlfn.XLOOKUP(AH33,Table1[Atomic symbol],Table1[Element]),pt_color),"") ->  | AJ35: =IFERROR(_xlfn.FIELDVALUE(_xlfn.XLOOKUP(AJ33,Table1[Atomic symbol],Table1[Element]),pt_color),"") ->  | AL35: =IFERROR(_xlfn.FIELDVALUE(_xlfn.XLOOKUP(AL33,Table1[Atomic symbol],Table1[Element]),pt_color),"") -> 
D37: 87 | F37: 88 | J37: 104 | L37: 105 | N37: 106 | P37: 107 | R37: 108 | T37: 109 | V37: 110 | X37: 111 | Z37: 112 | AB37: 113 | AD37: 114 | AF37: 115 | AH37: 116 | AJ37: 117 | AL37: 118
B38: 7 | D38: Fr | F38: Ra | J38: Rf | L38: Db | N38: Sg | P38: Bh | R38: Hs | T38: Mt | V38: Ds | X38: Rg | Z38: Cn | AB38: Nh | AD38: Fl | AF38: Mc | AH38: Lv | AJ38: Ts | AL38: Og
D39: =_xlfn.SINGLE(_xlfn.XLOOKUP(D38,Table1[Atomic symbol],Table1[Element])) ->  | F39: =_xlfn.SINGLE(_xlfn.XLOOKUP(F38,Table1[Atomic symbol],Table1[Element])) ->  | J39: =_xlfn.SINGLE(_xlfn.XLOOKUP(J38,Table1[Atomic symbol],Table1[Element])) ->  | L39: =_xlfn.SINGLE(_xlfn.XLOOKUP(L38,Table1[Atomic symbol],Table1[Element])) ->  | N39: =_xlfn.SINGLE(_xlfn.XLOOKUP(N38,Table1[Atomic symbol],Table1[Element])) ->  | P39: =_xlfn.SINGLE(_xlfn.XLOOKUP(P38,Table1[Atomic symbol],Table1[Element])) ->  | R39: =_xlfn.SINGLE(_xlfn.XLOOKUP(R38,Table1[Atomic symbol],Table1[Element])) ->  | T39: =_xlfn.SINGLE(_xlfn.XLOOKUP(T38,Table1[Atomic symbol],Table1[Element])) ->  | V39: =_xlfn.SINGLE(_xlfn.XLOOKUP(V38,Table1[Atomic symbol],Table1[Element])) ->  | X39: =_xlfn.SINGLE(_xlfn.XLOOKUP(X38,Table1[Atomic symbol],Table1[Element])) ->  | Z39: =_xlfn.SINGLE(_xlfn.XLOOKUP(Z38,Table1[Atomic symbol],Table1[Element])) ->  | AB39: =_xlfn.SINGLE(_xlfn.XLOOKUP(AB38,Table1[Atomic symbol],Table1[Element])) ->  | AD39: =_xlfn.SINGLE(_xlfn.XLOOKUP(AD38,Table1[Atomic symbol],Table1[Element])) ->  | AF39: =_xlfn.SINGLE(_xlfn.XLOOKUP(AF38,Table1[Atomic symbol],Table1[Element])) ->  | AH39: =_xlfn.SINGLE(_xlfn.XLOOKUP(AH38,Table1[Atomic symbol],Table1[Element])) ->  | AJ39: =_xlfn.SINGLE(_xlfn.XLOOKUP(AJ38,Table1[Atomic symbol],Table1[Element])) ->  | AL39: =_xlfn.SINGLE(_xlfn.XLOOKUP(AL38,Table1[Atomic symbol],Table1[Element])) -> 
D40: =IFERROR(_xlfn.FIELDVALUE(_xlfn.XLOOKUP(D38,Table1[Atomic symbol],Table1[Element]),pt_color),"") ->  | F40: =IFERROR(_xlfn.FIELDVALUE(_xlfn.XLOOKUP(F38,Table1[Atomic symbol],Table1[Element]),pt_color),"") ->  | J40: =IFERROR(_xlfn.FIELDVALUE(_xlfn.XLOOKUP(J38,Table1[Atomic symbol],Table1[Element]),pt_color),"") ->  | L40: =IFERROR(_xlfn.FIELDVALUE(_xlfn.XLOOKUP(L38,Table1[Atomic symbol],Table1[Element]),pt_color),"") ->  | N40: =IFERROR(_xlfn.FIELDVALUE(_xlfn.XLOOKUP(N38,Table1[Atomic symbol],Table1[Element]),pt_color),"") ->  | P40: =IFERROR(_xlfn.FIELDVALUE(_xlfn.XLOOKUP(P38,Table1[Atomic symbol],Table1[Element]),pt_color),"") ->  | R40: =IFERROR(_xlfn.FIELDVALUE(_xlfn.XLOOKUP(R38,Table1[Atomic symbol],Table1[Element]),pt_color),"") ->  | T40: =IFERROR(_xlfn.FIELDVALUE(_xlfn.XLOOKUP(T38,Table1[Atomic symbol],Table1[Element]),pt_color),"") ->  | V40: =IFERROR(_xlfn.FIELDVALUE(_xlfn.XLOOKUP(V38,Table1[Atomic symbol],Table1[Element]),pt_color),"") ->  | X40: =IFERROR(_xlfn.FIELDVALUE(_xlfn.XLOOKUP(X38,Table1[Atomic symbol],Table1[Element]),pt_color),"") ->  | Z40: =IFERROR(_xlfn.FIELDVALUE(_xlfn.XLOOKUP(Z38,Table1[Atomic symbol],Table1[Element]),pt_color),"") ->  | AB40: =IFERROR(_xlfn.FIELDVALUE(_xlfn.XLOOKUP(AB38,Table1[Atomic symbol],Table1[Element]),pt_color),"") ->  | AD40: =IFERROR(_xlfn.FIELDVALUE(_xlfn.XLOOKUP(AD38,Table1[Atomic symbol],Table1[Element]),pt_color),"") ->  | AF40: =IFERROR(_xlfn.FIELDVALUE(_xlfn.XLOOKUP(AF38,Table1[Atomic symbol],Table1[Element]),pt_color),"") ->  | AH40: =IFERROR(_xlfn.FIELDVALUE(_xlfn.XLOOKUP(AH38,Table1[Atomic symbol],Table1[Element]),pt_color),"") ->  | AJ40: =IFERROR(_xlfn.FIELDVALUE(_xlfn.XLOOKUP(AJ38,Table1[Atomic symbol],Table1[Element]),pt_color),"") ->  | AL40: =IFERROR(_xlfn.FIELDVALUE(_xlfn.XLOOKUP(AL38,Table1[Atomic symbol],Table1[Element]),pt_color),"") -> 
J42: 57 | L42: 58 | N42: 59 | P42: 60 | R42: 61 | T42: 62 | V42: 63 | X42: 64 | Z42: 65 | AB42: 66 | AD42: 67 | AF42: 68 | AH42: 69 | AJ42: 70 | AL42: 71
F43: Lanthanide series | J43: La | L43: Ce | N43: Pr | P43: Nd | R43: Pm | T43: Sm | V43: Eu | X43: Gd | Z43: Tb | AB43: Dy | AD43: Ho | AF43: Er | AH43: Tm | AJ43: Yb | AL43: Lu
J44: =_xlfn.SINGLE(_xlfn.XLOOKUP(J43,Table1[Atomic symbol],Table1[Element])) ->  | L44: =_xlfn.SINGLE(_xlfn.XLOOKUP(L43,Table1[Atomic symbol],Table1[Element])) ->  | N44: =_xlfn.SINGLE(_xlfn.XLOOKUP(N43,Table1[Atomic symbol],Table1[Element])) ->  | P44: =_xlfn.SINGLE(_xlfn.XLOOKUP(P43,Table1[Atomic symbol],Table1[Element])) ->  | R44: =_xlfn.SINGLE(_xlfn.XLOOKUP(R43,Table1[Atomic symbol],Table1[Element])) ->  | T44: =_xlfn.SINGLE(_xlfn.XLOOKUP(T43,Table1[Atomic symbol],Table1[Element])) ->  | V44: =_xlfn.SINGLE(_xlfn.XLOOKUP(V43,Table1[Atomic symbol],Table1[Element])) ->  | X44: =_xlfn.SINGLE(_xlfn.XLOOKUP(X43,Table1[Atomic symbol],Table1[Element])) ->  | Z44: =_xlfn.SINGLE(_xlfn.XLOOKUP(Z43,Table1[Atomic symbol],Table1[Element])) ->  | AB44: =_xlfn.SINGLE(_xlfn.XLOOKUP(AB43,Table1[Atomic symbol],Table1[Element])) ->  | AD44: =_xlfn.SINGLE(_xlfn.XLOOKUP(AD43,Table1[Atomic symbol],Table1[Element])) ->  | AF44: =_xlfn.SINGLE(_xlfn.XLOOKUP(AF43,Table1[Atomic symbol],Table1[Element])) ->  | AH44: =_xlfn.SINGLE(_xlfn.XLOOKUP(AH43,Table1[Atomic symbol],Table1[Element])) ->  | AJ44: =_xlfn.SINGLE(_xlfn.XLOOKUP(AJ43,Table1[Atomic symbol],Table1[Element])) ->  | AL44: =_xlfn.SINGLE(_xlfn.XLOOKUP(AL43,Table1[Atomic symbol],Table1[Element])) -> 
J45: =IFERROR(_xlfn.FIELDVALUE(_xlfn.XLOOKUP(J43,Table1[Atomic symbol],Table1[Element]),pt_color),"") -> 0.000 | L45: =IFERROR(_xlfn.FIELDVALUE(_xlfn.XLOOKUP(L43,Table1[Atomic symbol],Table1[Element]),pt_color),"") -> 0.000 | N45: =IFERROR(_xlfn.FIELDVALUE(_xlfn.XLOOKUP(N43,Table1[Atomic symbol],Table1[Element]),pt_color),"") -> 0.000 | P45: =IFERROR(_xlfn.FIELDVALUE(_xlfn.XLOOKUP(P43,Table1[Atomic symbol],Table1[Element]),pt_color),"") -> 0.000 | R45: =IFERROR(_xlfn.FIELDVALUE(_xlfn.XLOOKUP(R43,Table1[Atomic symbol],Table1[Element]),pt_color),"") ->  | T45: =IFERROR(_xlfn.FIELDVALUE(_xlfn.XLOOKUP(T43,Table1[Atomic symbol],Table1[Element]),pt_color),"") -> 0.000 | V45: =IFERROR(_xlfn.FIELDVALUE(_xlfn.XLOOKUP(V43,Table1[Atomic symbol],Table1[Element]),pt_color),"") -> 0.000 | X45: =IFERROR(_xlfn.FIELDVALUE(_xlfn.XLOOKUP(X43,Table1[Atomic symbol],Table1[Element]),pt_color),"") -> 0.000 | Z45: =IFERROR(_xlfn.FIELDVALUE(_xlfn.XLOOKUP(Z43,Table1[Atomic symbol],Table1[Element]),pt_color),"") -> 0.000 | AB45: =IFERROR(_xlfn.FIELDVALUE(_xlfn.XLOOKUP(AB43,Table1[Atomic symbol],Table1[Element]),pt_color),"") -> 0.000 | AD45: =IFERROR(_xlfn.FIELDVALUE(_xlfn.XLOOKUP(AD43,Table1[Atomic symbol],Table1[Element]),pt_color),"") -> 0.000 | AF45: =IFERROR(_xlfn.FIELDVALUE(_xlfn.XLOOKUP(AF43,Table1[Atomic symbol],Table1[Element]),pt_color),"") -> 0.000 | AH45: =IFERROR(_xlfn.FIELDVALUE(_xlfn.XLOOKUP(AH43,Table1[Atomic symbol],Table1[Element]),pt_color),"") -> 0.000 | AJ45: =IFERROR(_xlfn.FIELDVALUE(_xlfn.XLOOKUP(AJ43,Table1[Atomic symbol],Table1[Element]),pt_color),"") -> 0.000 | AL45: =IFERROR(_xlfn.FIELDVALUE(_xlfn.XLOOKUP(AL43,Table1[Atomic symbol],Table1[Element]),pt_color),"") -> 0.000
J47: 89 | L47: 90 | N47: 91 | P47: 92 | R47: 93 | T47: 94 | V47: 95 | X47: 96 | Z47: 97 | AB47: 98 | AD47: 99 | AF47: 100 | AH47: 101 | AJ47: 102 | AL47: 103
F48: Actinide series | J48: Ac | L48: Th | N48: Pa | P48: U | R48: Np | T48: Pu | V48: Am | X48: Cm | Z48: Bk | AB48: Cf | AD48: Es | AF48: Fm | AH48: Md | AJ48: No | AL48: Lr
J49: =_xlfn.SINGLE(_xlfn.XLOOKUP(J48,Table1[Atomic symbol],Table1[Element])) ->  | L49: =_xlfn.SINGLE(_xlfn.XLOOKUP(L48,Table1[Atomic symbol],Table1[Element])) ->  | N49: =_xlfn.SINGLE(_xlfn.XLOOKUP(N48,Table1[Atomic symbol],Table1[Element])) ->  | P49: =_xlfn.SINGLE(_xlfn.XLOOKUP(P48,Table1[Atomic symbol],Table1[Element])) ->  | R49: =_xlfn.SINGLE(_xlfn.XLOOKUP(R48,Table1[Atomic symbol],Table1[Element])) ->  | T49: =_xlfn.SINGLE(_xlfn.XLOOKUP(T48,Table1[Atomic symbol],Table1[Element])) ->  | V49: =_xlfn.SINGLE(_xlfn.XLOOKUP(V48,Table1[Atomic symbol],Table1[Element])) ->  | X49: =_xlfn.SINGLE(_xlfn.XLOOKUP(X48,Table1[Atomic symbol],Table1[Element])) ->  | Z49: =_xlfn.SINGLE(_xlfn.XLOOKUP(Z48,Table1[Atomic symbol],Table1[Element])) ->  | AB49: =_xlfn.SINGLE(_xlfn.XLOOKUP(AB48,Table1[Atomic symbol],Table1[Element])) ->  | AD49: =_xlfn.SINGLE(_xlfn.XLOOKUP(AD48,Table1[Atomic symbol],Table1[Element])) ->  | AF49: =_xlfn.SINGLE(_xlfn.XLOOKUP(AF48,Table1[Atomic symbol],Table1[Element])) ->  | AH49: =_xlfn.SINGLE(_xlfn.XLOOKUP(AH48,Table1[Atomic symbol],Table1[Element])) ->  | AJ49: =_xlfn.SINGLE(_xlfn.XLOOKUP(AJ48,Table1[Atomic symbol],Table1[Element])) ->  | AL49: =_xlfn.SINGLE(_xlfn.XLOOKUP(AL48,Table1[Atomic symbol],Table1[Element])) -> 
J50: =IFERROR(_xlfn.FIELDVALUE(_xlfn.XLOOKUP(J48,Table1[Atomic symbol],Table1[Element]),pt_color),"") ->  | L50: =IFERROR(_xlfn.FIELDVALUE(_xlfn.XLOOKUP(L48,Table1[Atomic symbol],Table1[Element]),pt_color),"") -> 0.000 | N50: =IFERROR(_xlfn.FIELDVALUE(_xlfn.XLOOKUP(N48,Table1[Atomic symbol],Table1[Element]),pt_color),"") ->  | P50: =IFERROR(_xlfn.FIELDVALUE(_xlfn.XLOOKUP(P48,Table1[Atomic symbol],Table1[Element]),pt_color),"") -> 0.000 | R50: =IFERROR(_xlfn.FIELDVALUE(_xlfn.XLOOKUP(R48,Table1[Atomic symbol],Table1[Element]),pt_color),"") ->  | T50: =IFERROR(_xlfn.FIELDVALUE(_xlfn.XLOOKUP(T48,Table1[Atomic symbol],Table1[Element]),pt_color),"") ->  | V50: =IFERROR(_xlfn.FIELDVALUE(_xlfn.XLOOKUP(V48,Table1[Atomic symbol],Table1[Element]),pt_color),"") ->  | X50: =IFERROR(_xlfn.FIELDVALUE(_xlfn.XLOOKUP(X48,Table1[Atomic symbol],Table1[Element]),pt_color),"") ->  | Z50: =IFERROR(_xlfn.FIELDVALUE(_xlfn.XLOOKUP(Z48,Table1[Atomic symbol],Table1[Element]),pt_color),"") ->  | AB50: =IFERROR(_xlfn.FIELDVALUE(_xlfn.XLOOKUP(AB48,Table1[Atomic symbol],Table1[Element]),pt_color),"") ->  | AD50: =IFERROR(_xlfn.FIELDVALUE(_xlfn.XLOOKUP(AD48,Table1[Atomic symbol],Table1[Element]),pt_color),"") ->  | AF50: =IFERROR(_xlfn.FIELDVALUE(_xlfn.XLOOKUP(AF48,Table1[Atomic symbol],Table1[Element]),pt_color),"") ->  | AH50: =IFERROR(_xlfn.FIELDVALUE(_xlfn.XLOOKUP(AH48,Table1[Atomic symbol],Table1[Element]),pt_color),"") ->  | AJ50: =IFERROR(_xlfn.FIELDVALUE(_xlfn.XLOOKUP(AJ48,Table1[Atomic symbol],Table1[Element]),pt_color),"") ->  | AL50: =IFERROR(_xlfn.FIELDVALUE(_xlfn.XLOOKUP(AL48,Table1[Atomic symbol],Table1[Element]),pt_color),"") -> 

Sheet PTSearch (hidden)
A1: =IF(pt_search <> "",TRUE,FALSE) -> FALSE
A2: =IF(pt_color <> "",TRUE,FALSE) -> TRUE | B2: ✓
A4: Property DV
A5: Atomic Mass | B5: =Table11[Property DV] -> Atomic Mass | D5: =IF(pt_search='Periodic table'!D7,1,0) -> 0 | E5: =D8 -> 0 | AL5: =IF(pt_search='Periodic table'!AL7,1,0) -> 0 | AM5: =AL8 -> 0
A6: Atomic radius | B6: Atomic radius | D6: =IF(pt_search='Periodic table'!D8,1,0) -> 0 | E6: =D8 -> 0 | AL6: =IF(pt_search='Periodic table'!AL8,1,0) -> 0 | AM6: =AL8 -> 0
A7: Block | B7: Block | D7: =IFERROR(IF(pt_search <> "",IF(SEARCH(pt_search,_FV('Periodic table'!D9,"name")),1,0),0),0) -> 0 | E7: =D8 -> 0 | AL7: =IFERROR(IF(pt_search <> "",IF(SEARCH(pt_search,_FV('Periodic table'!AL9,"name")),1,0),0),0) -> 0 | AM7: =AL8 -> 0
A8: Boiling Point | B8: Boiling Point | D8: =MAX(D5:D7) -> 0 | E8: =D8 -> 0 | AL8: =MAX(AL5:AL7) -> 0 | AM8: =AL8 -> 0
A9: Covalent radius | B9: Covalent radius
A10: Crust Abundance | B10: Crust Abundance | D10: =IF(pt_search='Periodic table'!D12,1,0) -> 0 | E10: =D13 -> 0 | F10: =IF(pt_search='Periodic table'!F12,1,0) -> 0 | G10: =F13 -> 0 | AB10: =IF(pt_search='Periodic table'!AB12,1,0) -> 0 | AC10: =AB13 -> 0 | AD10: =IF(pt_search='Periodic table'!AD12,1,0) -> 0 | AE10: =AD13 -> 0 | AF10: =IF(pt_search='Periodic table'!AF12,1,0) -> 0 | AG10: =AF13 -> 0 | AH10: =IF(pt_search='Periodic table'!AH12,1,0) -> 0 | AI10: =AH13 -> 0 | AJ10: =IF(pt_search='Periodic table'!AJ12,1,0) -> 0 | AK10: =AJ13 -> 0 | AL10: =IF(pt_search='Periodic table'!AL12,1,0) -> 0 | AM10: =AL13 -> 0
A11: Discovery year | B11: Discovery year | D11: =IF(pt_search='Periodic table'!D13,1,0) -> 0 | E11: =D13 -> 0 | F11: =IF(pt_search='Periodic table'!F13,1,0) -> 0 | G11: =F13 -> 0 | AB11: =IF(pt_search='Periodic table'!AB13,1,0) -> 0 | AC11: =AB13 -> 0 | AD11: =IF(pt_search='Periodic table'!AD13,1,0) -> 0 | AE11: =AD13 -> 0 | AF11: =IF(pt_search='Periodic table'!AF13,1,0) -> 0 | AG11: =AF13 -> 0 | AH11: =IF(pt_search='Periodic table'!AH13,1,0) -> 0 | AI11: =AH13 -> 0 | AJ11: =IF(pt_search='Periodic table'!AJ13,1,0) -> 0 | AK11: =AJ13 -> 0 | AL11: =IF(pt_search='Periodic table'!AL13,1,0) -> 0 | AM11: =AL13 -> 0
A12: Electron affinity | B12: Electron affinity | D12: =IFERROR(IF(pt_search <> "",IF(SEARCH(pt_search,_FV('Periodic table'!D14,"name")),1,0),0),0) -> 0 | E12: =D13 -> 0 | F12: =IFERROR(IF(pt_search <> "",IF(SEARCH(pt_search,_FV('Periodic table'!F14,"name")),1,0),0),0) -> 0 | G12: =F13 -> 0 | AB12: =IFERROR(IF(pt_search <> "",IF(SEARCH(pt_search,_FV('Periodic table'!AB14,"name")),1,0),0),0) -> 0 | AC12: =AB13 -> 0 | AD12: =IFERROR(IF(pt_search <> "",IF(SEARCH(pt_search,_FV('Periodic table'!AD14,"name")),1,0),0),0) -> 0 | AE12: =AD13 -> 0 | AF12: =IFERROR(IF(pt_search <> "",IF(SEARCH(pt_search,_FV('Periodic table'!AF14,"name")),1,0),0),0) -> 0 | AG12: =AF13 -> 0 | AH12: =IFERROR(IF(pt_search <> "",IF(SEARCH(pt_search,_FV('Periodic table'!AH14,"name")),1,0),0),0) -> 0 | AI12: =AH13 -> 0 | AJ12: =IFERROR(IF(pt_search <> "",IF(SEARCH(pt_search,_FV('Periodic table'!AJ14,"name")),1,0),0),0) -> 0 | AK12: =AJ13 -> 0 | AL12: =IFERROR(IF(pt_search <> "",IF(SEARCH(pt_search,_FV('Periodic table'!AL14,"name")),1,0),0),0) -> 0 | AM12: =AL13 -> 0
A13: Electronegativity | B13: Electronegativity | D13: =MAX(D10:D12) -> 0 | E13: =D13 -> 0 | F13: =MAX(F10:F12) -> 0 | G13: =F13 -> 0 | AB13: =MAX(AB10:AB12) -> 0 | AC13: =AB13 -> 0 | AD13: =MAX(AD10:AD12) -> 0 | AE13: =AD13 -> 0 | AF13: =MAX(AF10:AF12) -> 0 | AG13: =AF13 -> 0 | AH13: =MAX(AH10:AH12) -> 0 | AI13: =AH13 -> 0 | AJ13: =MAX(AJ10:AJ12) -> 0 | AK13: =AJ13 -> 0 | AL13: =MAX(AL10:AL12) -> 0 | AM13: =AL13 -> 0
A14: Group | B14: Group
A15: Human Abundance | B15: Human Abundance | D15: =IF(pt_search='Periodic table'!D17,1,0) -> 0 | E15: =D18 -> 0 | F15: =IF(pt_search='Periodic table'!F17,1,0) -> 0 | G15: =F18 -> 0 | AB15: =IF(pt_search='Periodic table'!AB17,1,0) -> 0 | AC15: =AB18 -> 0 | AD15: =IF(pt_search='Periodic table'!AD17,1,0) -> 0 | AE15: =AD18 -> 0 | AF15: =IF(pt_search='Periodic table'!AF17,1,0) -> 0 | AG15: =AF18 -> 0 | AH15: =IF(pt_search='Periodic table'!AH17,1,0) -> 0 | AI15: =AH18 -> 0 | AJ15: =IF(pt_search='Periodic table'!AJ17,1,0) -> 0 | AK15: =AJ18 -> 0 | AL15: =IF(pt_search='Periodic table'!AL17,1,0) -> 0 | AM15: =AL18 -> 0
A16: Melting Point | B16: Melting Point | D16: =IF(pt_search='Periodic table'!D18,1,0) -> 0 | E16: =D18 -> 0 | F16: =IF(pt_search='Periodic table'!F18,1,0) -> 0 | G16: =F18 -> 0 | AB16: =IF(pt_search='Periodic table'!AB18,1,0) -> 0 | AC16: =AB18 -> 0 | AD16: =IF(pt_search='Periodic table'!AD18,1,0) -> 0 | AE16: =AD18 -> 0 | AF16: =IF(pt_search='Periodic table'!AF18,1,0) -> 0 | AG16: =AF18 -> 0 | AH16: =IF(pt_search='Periodic table'!AH18,1,0) -> 0 | AI16: =AH18 -> 0 | AJ16: =IF(pt_search='Periodic table'!AJ18,1,0) -> 0 | AK16: =AJ18 -> 0 | AL16: =IF(pt_search='Periodic table'!AL18,1,0) -> 0 | AM16: =AL18 -> 0
A17: Meteorite Abundance | B17: Meteorite Abundance | D17: =IFERROR(IF(pt_search <> "",IF(SEARCH(pt_search,_FV('Periodic table'!D19,"name")),1,0),0),0) -> 0 | E17: =D18 -> 0 | F17: =IFERROR(IF(pt_search <> "",IF(SEARCH(pt_search,_FV('Periodic table'!F19,"name")),1,0),0),0) -> 0 | G17: =F18 -> 0 | AB17: =IFERROR(IF(pt_search <> "",IF(SEARCH(pt_search,_FV('Periodic table'!AB19,"name")),1,0),0),0) -> 0 | AC17: =AB18 -> 0 | AD17: =IFERROR(IF(pt_search <> "",IF(SEARCH(pt_search,_FV('Periodic table'!AD19,"name")),1,0),0),0) -> 0 | AE17: =AD18 -> 0 | AF17: =IFERROR(IF(pt_search <> "",IF(SEARCH(pt_search,_FV('Periodic table'!AF19,"name")),1,0),0),0) -> 0 | AG17: =AF18 -> 0 | AH17: =IFERROR(IF(pt_search <> "",IF(SEARCH(pt_search,_FV('Periodic table'!AH19,"name")),1,0),0),0) -> 0 | AI17: =AH18 -> 0 | AJ17: =IFERROR(IF(pt_search <> "",IF(SEARCH(pt_search,_FV('Periodic table'!AJ19,"name")),1,0),0),0) -> 0 | AK17: =AJ18 -> 0 | AL17: =IFERROR(IF(pt_search <> "",IF(SEARCH(pt_search,_FV('Periodic table'!AL19,"name")),1,0),0),0) -> 0 | AM17: =AL18 -> 0
A18: Ocean Abundance | B18: Ocean Abundance | D18: =MAX(D15:D17) -> 0 | E18: =D18 -> 0 | F18: =MAX(F15:F17) -> 0 | G18: =F18 -> 0 | AB18: =MAX(AB15:AB17) -> 0 | AC18: =AB18 -> 0 | AD18: =MAX(AD15:AD17) -> 0 | AE18: =AD18 -> 0 | AF18: =MAX(AF15:AF17) -> 0 | AG18: =AF18 -> 0 | AH18: =MAX(AH15:AH17) -> 0 | AI18: =AH18 -> 0 | AJ18: =MAX(AJ15:AJ17) -> 0 | AK18: =AJ18 -> 0 | AL18: =MAX(AL15:AL17) -> 0 | AM18: =AL18 -> 0
A19: Period | B19: Period
A20: Solar Abundance | B20: Solar Abundance | D20: =IF(pt_search='Periodic table'!D22,1,0) -> 0 | E20: =D23 -> 0 | F20: =IF(pt_search='Periodic table'!F22,1,0) -> 0 | G20: =F23 -> 0 | H20: =IF(pt_search='Periodic table'!H22,1,0) -> 0 | I20: =H23 -> 0 | J20: =IF(pt_search='Periodic table'!J22,1,0) -> 0 | K20: =J23 -> 0 | L20: =IF(pt_search='Periodic table'!L22,1,0) -> 0 | M20: =L23 -> 0 | N20: =IF(pt_search='Periodic table'!N22,1,0) -> 0 | O20: =N23 -> 0 | P20: =IF(pt_search='Periodic table'!P22,1,0) -> 0 | Q20: =P23 -> 0 | R20: =IF(pt_search='Periodic table'!R22,1,0) -> 0 | S20: =R23 -> 0 | T20: =IF(pt_search='Periodic table'!T22,1,0) -> 0 | U20: =T23 -> 0 | V20: =IF(pt_search='Periodic table'!V22,1,0) -> 0 | W20: =V23 -> 0 | X20: =IF(pt_search='Periodic table'!X22,1,0) -> 0 | Y20: =X23 -> 0 | Z20: =IF(pt_search='Periodic table'!Z22,1,0) -> 0 | AA20: =Z23 -> 0 | AB20: =IF(pt_search='Periodic table'!AB22,1,0) -> 0 | AC20: =AB23 -> 0 | AD20: =IF(pt_search='Periodic table'!AD22,1,0) -> 0 | AE20: =AD23 -> 0 | AF20: =IF(pt_search='Periodic table'!AF22,1,0) -> 0 | AG20: =AF23 -> 0 | AH20: =IF(pt_search='Periodic table'!AH22,1,0) -> 0 | AI20: =AH23 -> 0 | AJ20: =IF(pt_search='Periodic table'!AJ22,1,0) -> 0 | AK20: =AJ23 -> 0 | AL20: =IF(pt_search='Periodic table'!AL22,1,0) -> 0 | AM20: =AL23 -> 0
A21: Universe Abundance | B21: Universe Abundance | D21: =IF(pt_search='Periodic table'!D23,1,0) -> 0 | E21: =D23 -> 0 | F21: =IF(pt_search='Periodic table'!F23,1,0) -> 0 | G21: =F23 -> 0 | H21: =IF(pt_search='Periodic table'!H23,1,0) -> 0 | I21: =H23 -> 0 | J21: =IF(pt_search='Periodic table'!J23,1,0) -> 0 | K21: =J23 -> 0 | L21: =IF(pt_search='Periodic table'!L23,1,0) -> 0 | M21: =L23 -> 0 | N21: =IF(pt_search='Periodic table'!N23,1,0) -> 0 | O21: =N23 -> 0 | P21: =IF(pt_search='Periodic table'!P23,1,0) -> 0 | Q21: =P23 -> 0 | R21: =IF(pt_search='Periodic table'!R23,1,0) -> 0 | S21: =R23 -> 0 | T21: =IF(pt_search='Periodic table'!T23,1,0) -> 0 | U21: =T23 -> 0 | V21: =IF(pt_search='Periodic table'!V23,1,0) -> 0 | W21: =V23 -> 0 | X21: =IF(pt_search='Periodic table'!X23,1,0) -> 0 | Y21: =X23 -> 0 | Z21: =IF(pt_search='Periodic table'!Z23,1,0) -> 0 | AA21: =Z23 -> 0 | AB21: =IF(pt_search='Periodic table'!AB23,1,0) -> 0 | AC21: =AB23 -> 0 | AD21: =IF(pt_search='Periodic table'!AD23,1,0) -> 0 | AE21: =AD23 -> 0 | AF21: =IF(pt_search='Periodic table'!AF23,1,0) -> 0 | AG21: =AF23 -> 0 | AH21: =IF(pt_search='Periodic table'!AH23,1,0) -> 0 | AI21: =AH23 -> 0 | AJ21: =IF(pt_search='Periodic table'!AJ23,1,0) -> 0 | AK21: =AJ23 -> 0 | AL21: =IF(pt_search='Periodic table'!AL23,1,0) -> 0 | AM21: =AL23 -> 0
A22: Valence | B22: Valence | D22: =IFERROR(IF(pt_search <> "",IF(SEARCH(pt_search,_FV('Periodic table'!D24,"name")),1,0),0),0) -> 0 | E22: =D23 -> 0 | F22: =IFERROR(IF(pt_search <> "",IF(SEARCH(pt_search,_FV('Periodic table'!F24,"name")),1,0),0),0) -> 0 | G22: =F23 -> 0 | H22: =IFERROR(IF(pt_search <> "",IF(SEARCH(pt_search,_FV('Periodic table'!H24,"name")),1,0),0),0) -> 0 | I22: =H23 -> 0 | J22: =IFERROR(IF(pt_search <> "",IF(SEARCH(pt_search,_FV('Periodic table'!J24,"name")),1,0),0),0) -> 0 | K22: =J23 -> 0 | L22: =IFERROR(IF(pt_search <> "",IF(SEARCH(pt_search,_FV('Periodic table'!L24,"name")),1,0),0),0) -> 0 | M22: =L23 -> 0 | N22: =IFERROR(IF(pt_search <> "",IF(SEARCH(pt_search,_FV('Periodic table'!N24,"name")),1,0),0),0) -> 0 | O22: =N23 -> 0 | P22: =IFERROR(IF(pt_search <> "",IF(SEARCH(pt_search,_FV('Periodic table'!P24,"name")),1,0),0),0) -> 0 | Q22: =P23 -> 0 | R22: =IFERROR(IF(pt_search <> "",IF(SEARCH(pt_search,_FV('Periodic table'!R24,"name")),1,0),0),0) -> 0 | S22: =R23 -> 0 | T22: =IFERROR(IF(pt_search <> "",IF(SEARCH(pt_search,_FV('Periodic table'!T24,"name")),1,0),0),0) -> 0 | U22: =T23 -> 0 | V22: =IFERROR(IF(pt_search <> "",IF(SEARCH(pt_search,_FV('Periodic table'!V24,"name")),1,0),0),0) -> 0 | W22: =V23 -> 0 | X22: =IFERROR(IF(pt_search <> "",IF(SEARCH(pt_search,_FV('Periodic table'!X24,"name")),1,0),0),0) -> 0 | Y22: =X23 -> 0 | Z22: =IFERROR(IF(pt_search <> "",IF(SEARCH(pt_search,_FV('Periodic table'!Z24,"name")),1,0),0),0) -> 0 | AA22: =Z23 -> 0 | AB22: =IFERROR(IF(pt_search <> "",IF(SEARCH(pt_search,_FV('Periodic table'!AB24,"name")),1,0),0),0) -> 0 | AC22: =AB23 -> 0 | AD22: =IFERROR(IF(pt_search <> "",IF(SEARCH(pt_search,_FV('Periodic table'!AD24,"name")),1,0),0),0) -> 0 | AE22: =AD23 -> 0 | AF22: =IFERROR(IF(pt_search <> "",IF(SEARCH(pt_search,_FV('Periodic table'!AF24,"name")),1,0),0),0) -> 0 | AG22: =AF23 -> 0 | AH22: =IFERROR(IF(pt_search <> "",IF(SEARCH(pt_search,_FV('Periodic table'!AH24,"name")),1,0),0),0) -> 0 | AI22: =AH23 -> 0 | AJ22: =IFERROR(IF(pt_search <> "",IF(SEARCH(pt_search,_FV('Periodic table'!AJ24,"name")),1,0),0),0) -> 0 | AK22: =AJ23 -> 0 | AL22: =IFERROR(IF(pt_search <> "",IF(SEARCH(pt_search,_FV('Periodic table'!AL24,"name")),1,0),0),0) -> 0 | AM22: =AL23 -> 0
A23: Van der Waals radius | B23: Van der Waals radius | D23: =MAX(D20:D22) -> 0 | E23: =D23 -> 0 | F23: =MAX(F20:F22) -> 0 | G23: =F23 -> 0 | H23: =MAX(H20:H22) -> 0 | I23: =H23 -> 0 | J23: =MAX(J20:J22) -> 0 | K23: =J23 -> 0 | L23: =MAX(L20:L22) -> 0 | M23: =L23 -> 0 | N23: =MAX(N20:N22) -> 0 | O23: =N23 -> 0 | P23: =MAX(P20:P22) -> 0 | Q23: =P23 -> 0 | R23: =MAX(R20:R22) -> 0 | S23: =R23 -> 0 | T23: =MAX(T20:T22) -> 0 | U23: =T23 -> 0 | V23: =MAX(V20:V22) -> 0 | W23: =V23 -> 0 | X23: =MAX(X20:X22) -> 0 | Y23: =X23 -> 0 | Z23: =MAX(Z20:Z22) -> 0 | AA23: =Z23 -> 0 | AB23: =MAX(AB20:AB22) -> 0 | AC23: =AB23 -> 0 | AD23: =MAX(AD20:AD22) -> 0 | AE23: =AD23 -> 0 | AF23: =MAX(AF20:AF22) -> 0 | AG23: =AF23 -> 0 | AH23: =MAX(AH20:AH22) -> 0 | AI23: =AH23 -> 0 | AJ23: =MAX(AJ20:AJ22) -> 0 | AK23: =AJ23 -> 0 | AL23: =MAX(AL20:AL22) -> 0 | AM23: =AL23 -> 0
D25: =IF(pt_search='Periodic table'!D27,1,0) -> 0 | E25: =D28 -> 0 | F25: =IF(pt_search='Periodic table'!F27,1,0) -> 0 | G25: =F28 -> 0 | H25: =IF(pt_search='Periodic table'!H27,1,0) -> 0 | I25: =H28 -> 0 | J25: =IF(pt_search='Periodic table'!J27,1,0) -> 0 | K25: =J28 -> 0 | L25: =IF(pt_search='Periodic table'!L27,1,0) -> 0 | M25: =L28 -> 0 | N25: =IF(pt_search='Periodic table'!N27,1,0) -> 0 | O25: =N28 -> 0 | P25: =IF(pt_search='Periodic table'!P27,1,0) -> 0 | Q25: =P28 -> 0 | R25: =IF(pt_search='Periodic table'!R27,1,0) -> 0 | S25: =R28 -> 0 | T25: =IF(pt_search='Periodic table'!T27,1,0) -> 0 | U25: =T28 -> 0 | V25: =IF(pt_search='Periodic table'!V27,1,0) -> 0 | W25: =V28 -> 0 | X25: =IF(pt_search='Periodic table'!X27,1,0) -> 0 | Y25: =X28 -> 0 | Z25: =IF(pt_search='Periodic table'!Z27,1,0) -> 0 | AA25: =Z28 -> 0 | AB25: =IF(pt_search='Periodic table'!AB27,1,0) -> 0 | AC25: =AB28 -> 0 | AD25: =IF(pt_search='Periodic table'!AD27,1,0) -> 0 | AE25: =AD28 -> 0 | AF25: =IF(pt_search='Periodic table'!AF27,1,0) -> 0 | AG25: =AF28 -> 0 | AH25: =IF(pt_search='Periodic table'!AH27,1,0) -> 0 | AI25: =AH28 -> 0 | AJ25: =IF(pt_search='Periodic table'!AJ27,1,0) -> 0 | AK25: =AJ28 -> 0 | AL25: =IF(pt_search='Periodic table'!AL27,1,0) -> 0 | AM25: =AL28 -> 0
D26: =IF(pt_search='Periodic table'!D28,1,0) -> 0 | E26: =D28 -> 0 | F26: =IF(pt_search='Periodic table'!F28,1,0) -> 0 | G26: =F28 -> 0 | H26: =IF(pt_search='Periodic table'!H28,1,0) -> 0 | I26: =H28 -> 0 | J26: =IF(pt_search='Periodic table'!J28,1,0) -> 0 | K26: =J28 -> 0 | L26: =IF(pt_search='Periodic table'!L28,1,0) -> 0 | M26: =L28 -> 0 | N26: =IF(pt_search='Periodic table'!N28,1,0) -> 0 | O26: =N28 -> 0 | P26: =IF(pt_search='Periodic table'!P28,1,0) -> 0 | Q26: =P28 -> 0 | R26: =IF(pt_search='Periodic table'!R28,1,0) -> 0 | S26: =R28 -> 0 | T26: =IF(pt_search='Periodic table'!T28,1,0) -> 0 | U26: =T28 -> 0 | V26: =IF(pt_search='Periodic table'!V28,1,0) -> 0 | W26: =V28 -> 0 | X26: =IF(pt_search='Periodic table'!X28,1,0) -> 0 | Y26: =X28 -> 0 | Z26: =IF(pt_search='Periodic table'!Z28,1,0) -> 0 | AA26: =Z28 -> 0 | AB26: =IF(pt_search='Periodic table'!AB28,1,0) -> 0 | AC26: =AB28 -> 0 | AD26: =IF(pt_search='Periodic table'!AD28,1,0) -> 0 | AE26: =AD28 -> 0 | AF26: =IF(pt_search='Periodic table'!AF28,1,0) -> 0 | AG26: =AF28 -> 0 | AH26: =IF(pt_search='Periodic table'!AH28,1,0) -> 0 | AI26: =AH28 -> 0 | AJ26: =IF(pt_search='Periodic table'!AJ28,1,0) -> 0 | AK26: =AJ28 -> 0 | AL26: =IF(pt_search='Periodic table'!AL28,1,0) -> 0 | AM26: =AL28 -> 0
D27: =IFERROR(IF(pt_search <> "",IF(SEARCH(pt_search,_FV('Periodic table'!D29,"name")),1,0),0),0) -> 0 | E27: =D28 -> 0 | F27: =IFERROR(IF(pt_search <> "",IF(SEARCH(pt_search,_FV('Periodic table'!F29,"name")),1,0),0),0) -> 0 | G27: =F28 -> 0 | H27: =IFERROR(IF(pt_search <> "",IF(SEARCH(pt_search,_FV('Periodic table'!H29,"name")),1,0),0),0) -> 0 | I27: =H28 -> 0 | J27: =IFERROR(IF(pt_search <> "",IF(SEARCH(pt_search,_FV('Periodic table'!J29,"name")),1,0),0),0) -> 0 | K27: =J28 -> 0 | L27: =IFERROR(IF(pt_search <> "",IF(SEARCH(pt_search,_FV('Periodic table'!L29,"name")),1,0),0),0) -> 0 | M27: =L28 -> 0 | N27: =IFERROR(IF(pt_search <> "",IF(SEARCH(pt_search,_FV('Periodic table'!N29,"name")),1,0),0),0) -> 0 | O27: =N28 -> 0 | P27: =IFERROR(IF(pt_search <> "",IF(SEARCH(pt_search,_FV('Periodic table'!P29,"name")),1,0),0),0) -> 0 | Q27: =P28 -> 0 | R27: =IFERROR(IF(pt_search <> "",IF(SEARCH(pt_search,_FV('Periodic table'!R29,"name")),1,0),0),0) -> 0 | S27: =R28 -> 0 | T27: =IFERROR(IF(pt_search <> "",IF(SEARCH(pt_search,_FV('Periodic table'!T29,"name")),1,0),0),0) -> 0 | U27: =T28 -> 0 | V27: =IFERROR(IF(pt_search <> "",IF(SEARCH(pt_search,_FV('Periodic table'!V29,"name")),1,0),0),0) -> 0 | W27: =V28 -> 0 | X27: =IFERROR(IF(pt_search <> "",IF(SEARCH(pt_search,_FV('Periodic table'!X29,"name")),1,0),0),0) -> 0 | Y27: =X28 -> 0 | Z27: =IFERROR(IF(pt_search <> "",IF(SEARCH(pt_search,_FV('Periodic table'!Z29,"name")),1,0),0),0) -> 0 | AA27: =Z28 -> 0 | AB27: =IFERROR(IF(pt_search <> "",IF(SEARCH(pt_search,_FV('Periodic table'!AB29,"name")),1,0),0),0) -> 0 | AC27: =AB28 -> 0 | AD27: =IFERROR(IF(pt_search <> "",IF(SEARCH(pt_search,_FV('Periodic table'!AD29,"name")),1,0),0),0) -> 0 | AE27: =AD28 -> 0 | AF27: =IFERROR(IF(pt_search <> "",IF(SEARCH(pt_search,_FV('Periodic table'!AF29,"name")),1,0),0),0) -> 0 | AG27: =AF28 -> 0 | AH27: =IFERROR(IF(pt_search <> "",IF(SEARCH(pt_search,_FV('Periodic table'!AH29,"name")),1,0),0),0) -> 0 | AI27: =AH28 -> 0 | AJ27: =IFERROR(IF(pt_search <> "",IF(SEARCH(pt_search,_FV('Periodic table'!AJ29,"name")),1,0),0),0) -> 0 | AK27: =AJ28 -> 0 | AL27: =IFERROR(IF(pt_search <> "",IF(SEARCH(pt_search,_FV('Periodic table'!AL29,"name")),1,0),0),0) -> 0 | AM27: =AL28 -> 0
D28: =MAX(D25:D27) -> 0 | E28: =D28 -> 0 | F28: =MAX(F25:F27) -> 0 | G28: =F28 -> 0 | H28: =MAX(H25:H27) -> 0 | I28: =H28 -> 0 | J28: =MAX(J25:J27) -> 0 | K28: =J28 -> 0 | L28: =MAX(L25:L27) -> 0 | M28: =L28 -> 0 | N28: =MAX(N25:N27) -> 0 | O28: =N28 -> 0 | P28: =MAX(P25:P27) -> 0 | Q28: =P28 -> 0 | R28: =MAX(R25:R27) -> 0 | S28: =R28 -> 0 | T28: =MAX(T25:T27) -> 0 | U28: =T28 -> 0 | V28: =MAX(V25:V27) -> 0 | W28: =V28 -> 0 | X28: =MAX(X25:X27) -> 0 | Y28: =X28 -> 0 | Z28: =MAX(Z25:Z27) -> 0 | AA28: =Z28 -> 0 | AB28: =MAX(AB25:AB27) -> 0 | AC28: =AB28 -> 0 | AD28: =MAX(AD25:AD27) -> 0 | AE28: =AD28 -> 0 | AF28: =MAX(AF25:AF27) -> 0 | AG28: =AF28 -> 0 | AH28: =MAX(AH25:AH27) -> 0 | AI28: =AH28 -> 0 | AJ28: =MAX(AJ25:AJ27) -> 0 | AK28: =AJ28 -> 0 | AL28: =MAX(AL25:AL27) -> 0 | AM28: =AL28 -> 0
A30: List of chemicals | D30: =IF(pt_search='Periodic table'!D32,1,0) -> 0 | E30: =D33 -> 0 | F30: =IF(pt_search='Periodic table'!F32,1,0) -> 0 | G30: =F33 -> 0 | J30: =IF(pt_search='Periodic table'!J32,1,0) -> 0 | K30: =J33 -> 0 | L30: =IF(pt_search='Periodic table'!L32,1,0) -> 0 | M30: =L33 -> 0 | N30: =IF(pt_search='Periodic table'!N32,1,0) -> 0 | O30: =N33 -> 0 | P30: =IF(pt_search='Periodic table'!P32,1,0) -> 0 | Q30: =P33 -> 0 | R30: =IF(pt_search='Periodic table'!R32,1,0) -> 0 | S30: =R33 -> 0 | T30: =IF(pt_search='Periodic table'!T32,1,0) -> 0 | U30: =T33 -> 0 | V30: =IF(pt_search='Periodic table'!V32,1,0) -> 0 | W30: =V33 -> 0 | X30: =IF(pt_search='Periodic table'!X32,1,0) -> 0 | Y30: =X33 -> 0 | Z30: =IF(pt_search='Periodic table'!Z32,1,0) -> 0 | AA30: =Z33 -> 0 | AB30: =IF(pt_search='Periodic table'!AB32,1,0) -> 0 | AC30: =AB33 -> 0 | AD30: =IF(pt_search='Periodic table'!AD32,1,0) -> 0 | AE30: =AD33 -> 0 | AF30: =IF(pt_search='Periodic table'!AF32,1,0) -> 0 | AG30: =AF33 -> 0 | AH30: =IF(pt_search='Periodic table'!AH32,1,0) -> 0 | AI30: =AH33 -> 0 | AJ30: =IF(pt_search='Periodic table'!AJ32,1,0) -> 0 | AK30: =AJ33 -> 0 | AL30: =IF(pt_search='Periodic table'!AL32,1,0) -> 0 | AM30: =AL33 -> 0
A31: =_xlfn._xlws.SORT(_xlfn._xlws.FILTER(CompundList[Compound], CompundList[Compound]<>""),1) ->  | D31: =IF(pt_search='Periodic table'!D33,1,0) -> 0 | E31: =D33 -> 0 | F31: =IF(pt_search='Periodic table'!F33,1,0) -> 0 | G31: =F33 -> 0 | J31: =IF(pt_search='Periodic table'!J33,1,0) -> 0 | K31: =J33 -> 0 | L31: =IF(pt_search='Periodic table'!L33,1,0) -> 0 | M31: =L33 -> 0 | N31: =IF(pt_search='Periodic table'!N33,1,0) -> 0 | O31: =N33 -> 0 | P31: =IF(pt_search='Periodic table'!P33,1,0) -> 0 | Q31: =P33 -> 0 | R31: =IF(pt_search='Periodic table'!R33,1,0) -> 0 | S31: =R33 -> 0 | T31: =IF(pt_search='Periodic table'!T33,1,0) -> 0 | U31: =T33 -> 0 | V31: =IF(pt_search='Periodic table'!V33,1,0) -> 0 | W31: =V33 -> 0 | X31: =IF(pt_search='Periodic table'!X33,1,0) -> 0 | Y31: =X33 -> 0 | Z31: =IF(pt_search='Periodic table'!Z33,1,0) -> 0 | AA31: =Z33 -> 0 | AB31: =IF(pt_search='Periodic table'!AB33,1,0) -> 0 | AC31: =AB33 -> 0 | AD31: =IF(pt_search='Periodic table'!AD33,1,0) -> 0 | AE31: =AD33 -> 0 | AF31: =IF(pt_search='Periodic table'!AF33,1,0) -> 0 | AG31: =AF33 -> 0 | AH31: =IF(pt_search='Periodic table'!AH33,1,0) -> 0 | AI31: =AH33 -> 0 | AJ31: =IF(pt_search='Periodic table'!AJ33,1,0) -> 0 | AK31: =AJ33 -> 0 | AL31: =IF(pt_search='Periodic table'!AL33,1,0) -> 0 | AM31: =AL33 -> 0
D32: =IFERROR(IF(pt_search <> "",IF(SEARCH(pt_search,_FV('Periodic table'!D34,"name")),1,0),0),0) -> 0 | E32: =D33 -> 0 | F32: =IFERROR(IF(pt_search <> "",IF(SEARCH(pt_search,_FV('Periodic table'!F34,"name")),1,0),0),0) -> 0 | G32: =F33 -> 0 | J32: =IFERROR(IF(pt_search <> "",IF(SEARCH(pt_search,_FV('Periodic table'!J34,"name")),1,0),0),0) -> 0 | K32: =J33 -> 0 | L32: =IFERROR(IF(pt_search <> "",IF(SEARCH(pt_search,_FV('Periodic table'!L34,"name")),1,0),0),0) -> 0 | M32: =L33 -> 0 | N32: =IFERROR(IF(pt_search <> "",IF(SEARCH(pt_search,_FV('Periodic table'!N34,"name")),1,0),0),0) -> 0 | O32: =N33 -> 0 | P32: =IFERROR(IF(pt_search <> "",IF(SEARCH(pt_search,_FV('Periodic table'!P34,"name")),1,0),0),0) -> 0 | Q32: =P33 -> 0 | R32: =IFERROR(IF(pt_search <> "",IF(SEARCH(pt_search,_FV('Periodic table'!R34,"name")),1,0),0),0) -> 0 | S32: =R33 -> 0 | T32: =IFERROR(IF(pt_search <> "",IF(SEARCH(pt_search,_FV('Periodic table'!T34,"name")),1,0),0),0) -> 0 | U32: =T33 -> 0 | V32: =IFERROR(IF(pt_search <> "",IF(SEARCH(pt_search,_FV('Periodic table'!V34,"name")),1,0),0),0) -> 0 | W32: =V33 -> 0 | X32: =IFERROR(IF(pt_search <> "",IF(SEARCH(pt_search,_FV('Periodic table'!X34,"name")),1,0),0),0) -> 0 | Y32: =X33 -> 0 | Z32: =IFERROR(IF(pt_search <> "",IF(SEARCH(pt_search,_FV('Periodic table'!Z34,"name")),1,0),0),0) -> 0 | AA32: =Z33 -> 0 | AB32: =IFERROR(IF(pt_search <> "",IF(SEARCH(pt_search,_FV('Periodic table'!AB34,"name")),1,0),0),0) -> 0 | AC32: =AB33 -> 0 | AD32: =IFERROR(IF(pt_search <> "",IF(SEARCH(pt_search,_FV('Periodic table'!AD34,"name")),1,0),0),0) -> 0 | AE32: =AD33 -> 0 | AF32: =IFERROR(IF(pt_search <> "",IF(SEARCH(pt_search,_FV('Periodic table'!AF34,"name")),1,0),0),0) -> 0 | AG32: =AF33 -> 0 | AH32: =IFERROR(IF(pt_search <> "",IF(SEARCH(pt_search,_FV('Periodic table'!AH34,"name")),1,0),0),0) -> 0 | AI32: =AH33 -> 0 | AJ32: =IFERROR(IF(pt_search <> "",IF(SEARCH(pt_search,_FV('Periodic table'!AJ34,"name")),1,0),0),0) -> 0 | AK32: =AJ33 -> 0 | AL32: =IFERROR(IF(pt_search <> "",IF(SEARCH(pt_search,_FV('Periodic table'!AL34,"name")),1,0),0),0) -> 0 | AM32: =AL33 -> 0
D33: =MAX(D30:D32) -> 0 | E33: =D33 -> 0 | F33: =MAX(F30:F32) -> 0 | G33: =F33 -> 0 | J33: =MAX(J30:J32) -> 0 | K33: =J33 -> 0 | L33: =MAX(L30:L32) -> 0 | M33: =L33 -> 0 | N33: =MAX(N30:N32) -> 0 | O33: =N33 -> 0 | P33: =MAX(P30:P32) -> 0 | Q33: =P33 -> 0 | R33: =MAX(R30:R32) -> 0 | S33: =R33 -> 0 | T33: =MAX(T30:T32) -> 0 | U33: =T33 -> 0 | V33: =MAX(V30:V32) -> 0 | W33: =V33 -> 0 | X33: =MAX(X30:X32) -> 0 | Y33: =X33 -> 0 | Z33: =MAX(Z30:Z32) -> 0 | AA33: =Z33 -> 0 | AB33: =MAX(AB30:AB32) -> 0 | AC33: =AB33 -> 0 | AD33: =MAX(AD30:AD32) -> 0 | AE33: =AD33 -> 0 | AF33: =MAX(AF30:AF32) -> 0 | AG33: =AF33 -> 0 | AH33: =MAX(AH30:AH32) -> 0 | AI33: =AH33 -> 0 | AJ33: =MAX(AJ30:AJ32) -> 0 | AK33: =AJ33 -> 0 | AL33: =MAX(AL30:AL32) -> 0 | AM33: =AL33 -> 0
D35: =IF(pt_search='Periodic table'!D37,1,0) -> 0 | E35: =D38 -> 0 | F35: =IF(pt_search='Periodic table'!F37,1,0) -> 0 | G35: =F38 -> 0 | J35: =IF(pt_search='Periodic table'!J37,1,0) -> 0 | K35: =J38 -> 0 | L35: =IF(pt_search='Periodic table'!L37,1,0) -> 0 | M35: =L38 -> 0 | N35: =IF(pt_search='Periodic table'!N37,1,0) -> 0 | O35: =N38 -> 0 | P35: =IF(pt_search='Periodic table'!P37,1,0) -> 0 | Q35: =P38 -> 0 | R35: =IF(pt_search='Periodic table'!R37,1,0) -> 0 | S35: =R38 -> 0 | T35: =IF(pt_search='Periodic table'!T37,1,0) -> 0 | U35: =T38 -> 0 | V35: =IF(pt_search='Periodic table'!V37,1,0) -> 0 | W35: =V38 -> 0 | X35: =IF(pt_search='Periodic table'!X37,1,0) -> 0 | Y35: =X38 -> 0 | Z35: =IF(pt_search='Periodic table'!Z37,1,0) -> 0 | AA35: =Z38 -> 0 | AB35: =IF(pt_search='Periodic table'!AB37,1,0) -> 0 | AC35: =AB38 -> 0 | AD35: =IF(pt_search='Periodic table'!AD37,1,0) -> 0 | AE35: =AD38 -> 0 | AF35: =IF(pt_search='Periodic table'!AF37,1,0) -> 0 | AG35: =AF38 -> 0 | AH35: =IF(pt_search='Periodic table'!AH37,1,0) -> 0 | AI35: =AH38 -> 0 | AJ35: =IF(pt_search='Periodic table'!AJ37,1,0) -> 0 | AK35: =AJ38 -> 0 | AL35: =IF(pt_search='Periodic table'!AL37,1,0) -> 0 | AM35: =AL38 -> 0
D36: =IF(pt_search='Periodic table'!D38,1,0) -> 0 | E36: =D38 -> 0 | F36: =IF(pt_search='Periodic table'!F38,1,0) -> 0 | G36: =F38 -> 0 | J36: =IF(pt_search='Periodic table'!J38,1,0) -> 0 | K36: =J38 -> 0 | L36: =IF(pt_search='Periodic table'!L38,1,0) -> 0 | M36: =L38 -> 0 | N36: =IF(pt_search='Periodic table'!N38,1,0) -> 0 | O36: =N38 -> 0 | P36: =IF(pt_search='Periodic table'!P38,1,0) -> 0 | Q36: =P38 -> 0 | R36: =IF(pt_search='Periodic table'!R38,1,0) -> 0 | S36: =R38 -> 0 | T36: =IF(pt_search='Periodic table'!T38,1,0) -> 0 | U36: =T38 -> 0 | V36: =IF(pt_search='Periodic table'!V38,1,0) -> 0 | W36: =V38 -> 0 | X36: =IF(pt_search='Periodic table'!X38,1,0) -> 0 | Y36: =X38 -> 0 | Z36: =IF(pt_search='Periodic table'!Z38,1,0) -> 0 | AA36: =Z38 -> 0 | AB36: =IF(pt_search='Periodic table'!AB38,1,0) -> 0 | AC36: =AB38 -> 0 | AD36: =IF(pt_search='Periodic table'!AD38,1,0) -> 0 | AE36: =AD38 -> 0 | AF36: =IF(pt_search='Periodic table'!AF38,1,0) -> 0 | AG36: =AF38 -> 0 | AH36: =IF(pt_search='Periodic table'!AH38,1,0) -> 0 | AI36: =AH38 -> 0 | AJ36: =IF(pt_search='Periodic table'!AJ38,1,0) -> 0 | AK36: =AJ38 -> 0 | AL36: =IF(pt_search='Periodic table'!AL38,1,0) -> 0 | AM36: =AL38 -> 0
D37: =IFERROR(IF(pt_search <> "",IF(SEARCH(pt_search,_FV('Periodic table'!D39,"name")),1,0),0),0) -> 0 | E37: =D38 -> 0 | F37: =IFERROR(IF(pt_search <> "",IF(SEARCH(pt_search,_FV('Periodic table'!F39,"name")),1,0),0),0) -> 0 | G37: =F38 -> 0 | J37: =IFERROR(IF(pt_search <> "",IF(SEARCH(pt_search,_FV('Periodic table'!J39,"name")),1,0),0),0) -> 0 | K37: =J38 -> 0 | L37: =IFERROR(IF(pt_search <> "",IF(SEARCH(pt_search,_FV('Periodic table'!L39,"name")),1,0),0),0) -> 0 | M37: =L38 -> 0 | N37: =IFERROR(IF(pt_search <> "",IF(SEARCH(pt_search,_FV('Periodic table'!N39,"name")),1,0),0),0) -> 0 | O37: =N38 -> 0 | P37: =IFERROR(IF(pt_search <> "",IF(SEARCH(pt_search,_FV('Periodic table'!P39,"name")),1,0),0),0) -> 0 | Q37: =P38 -> 0 | R37: =IFERROR(IF(pt_search <> "",IF(SEARCH(pt_search,_FV('Periodic table'!R39,"name")),1,0),0),0) -> 0 | S37: =R38 -> 0 | T37: =IFERROR(IF(pt_search <> "",IF(SEARCH(pt_search,_FV('Periodic table'!T39,"name")),1,0),0),0) -> 0 | U37: =T38 -> 0 | V37: =IFERROR(IF(pt_search <> "",IF(SEARCH(pt_search,_FV('Periodic table'!V39,"name")),1,0),0),0) -> 0 | W37: =V38 -> 0 | X37: =IFERROR(IF(pt_search <> "",IF(SEARCH(pt_search,_FV('Periodic table'!X39,"name")),1,0),0),0) -> 0 | Y37: =X38 -> 0 | Z37: =IFERROR(IF(pt_search <> "",IF(SEARCH(pt_search,_FV('Periodic table'!Z39,"name")),1,0),0),0) -> 0 | AA37: =Z38 -> 0 | AB37: =IFERROR(IF(pt_search <> "",IF(SEARCH(pt_search,_FV('Periodic table'!AB39,"name")),1,0),0),0) -> 0 | AC37: =AB38 -> 0 | AD37: =IFERROR(IF(pt_search <> "",IF(SEARCH(pt_search,_FV('Periodic table'!AD39,"name")),1,0),0),0) -> 0 | AE37: =AD38 -> 0 | AF37: =IFERROR(IF(pt_search <> "",IF(SEARCH(pt_search,_FV('Periodic table'!AF39,"name")),1,0),0),0) -> 0 | AG37: =AF38 -> 0 | AH37: =IFERROR(IF(pt_search <> "",IF(SEARCH(pt_search,_FV('Periodic table'!AH39,"name")),1,0),0),0) -> 0 | AI37: =AH38 -> 0 | AJ37: =IFERROR(IF(pt_search <> "",IF(SEARCH(pt_search,_FV('Periodic table'!AJ39,"name")),1,0),0),0) -> 0 | AK37: =AJ38 -> 0 | AL37: =IFERROR(IF(pt_search <> "",IF(SEARCH(pt_search,_FV('Periodic table'!AL39,"name")),1,0),0),0) -> 0 | AM37: =AL38 -> 0
D38: =MAX(D35:D37) -> 0 | E38: =D38 -> 0 | F38: =MAX(F35:F37) -> 0 | G38: =F38 -> 0 | J38: =MAX(J35:J37) -> 0 | K38: =J38 -> 0 | L38: =MAX(L35:L37) -> 0 | M38: =L38 -> 0 | N38: =MAX(N35:N37) -> 0 | O38: =N38 -> 0 | P38: =MAX(P35:P37) -> 0 | Q38: =P38 -> 0 | R38: =MAX(R35:R37) -> 0 | S38: =R38 -> 0 | T38: =MAX(T35:T37) -> 0 | U38: =T38 -> 0 | V38: =MAX(V35:V37) -> 0 | W38: =V38 -> 0 | X38: =MAX(X35:X37) -> 0 | Y38: =X38 -> 0 | Z38: =MAX(Z35:Z37) -> 0 | AA38: =Z38 -> 0 | AB38: =MAX(AB35:AB37) -> 0 | AC38: =AB38 -> 0 | AD38: =MAX(AD35:AD37) -> 0 | AE38: =AD38 -> 0 | AF38: =MAX(AF35:AF37) -> 0 | AG38: =AF38 -> 0 | AH38: =MAX(AH35:AH37) -> 0 | AI38: =AH38 -> 0 | AJ38: =MAX(AJ35:AJ37) -> 0 | AK38: =AJ38 -> 0 | AL38: =MAX(AL35:AL37) -> 0 | AM38: =AL38 -> 0
J40: =IF(pt_search='Periodic table'!J42,1,0) -> 0 | K40: =J43 -> 0 | L40: =IF(pt_search='Periodic table'!L42,1,0) -> 0 | M40: =L43 -> 0 | N40: =IF(pt_search='Periodic table'!N42,1,0) -> 0 | O40: =N43 -> 0 | P40: =IF(pt_search='Periodic table'!P42,1,0) -> 0 | Q40: =P43 -> 0 | R40: =IF(pt_search='Periodic table'!R42,1,0) -> 0 | S40: =R43 -> 0 | T40: =IF(pt_search='Periodic table'!T42,1,0) -> 0 | U40: =T43 -> 0 | V40: =IF(pt_search='Periodic table'!V42,1,0) -> 0 | W40: =V43 -> 0 | X40: =IF(pt_search='Periodic table'!X42,1,0) -> 0 | Y40: =X43 -> 0 | Z40: =IF(pt_search='Periodic table'!Z42,1,0) -> 0 | AA40: =Z43 -> 0 | AB40: =IF(pt_search='Periodic table'!AB42,1,0) -> 0 | AC40: =AB43 -> 0 | AD40: =IF(pt_search='Periodic table'!AD42,1,0) -> 0 | AE40: =AD43 -> 0 | AF40: =IF(pt_search='Periodic table'!AF42,1,0) -> 0 | AG40: =AF43 -> 0 | AH40: =IF(pt_search='Periodic table'!AH42,1,0) -> 0 | AI40: =AH43 -> 0 | AJ40: =IF(pt_search='Periodic table'!AJ42,1,0) -> 0 | AK40: =AJ43 -> 0 | AL40: =IF(pt_search='Periodic table'!AL42,1,0) -> 0 | AM40: =AL43 -> 0
J41: =IF(pt_search='Periodic table'!J43,1,0) -> 0 | K41: =J43 -> 0 | L41: =IF(pt_search='Periodic table'!L43,1,0) -> 0 | M41: =L43 -> 0 | N41: =IF(pt_search='Periodic table'!N43,1,0) -> 0 | O41: =N43 -> 0 | P41: =IF(pt_search='Periodic table'!P43,1,0) -> 0 | Q41: =P43 -> 0 | R41: =IF(pt_search='Periodic table'!R43,1,0) -> 0 | S41: =R43 -> 0 | T41: =IF(pt_search='Periodic table'!T43,1,0) -> 0 | U41: =T43 -> 0 | V41: =IF(pt_search='Periodic table'!V43,1,0) -> 0 | W41: =V43 -> 0 | X41: =IF(pt_search='Periodic table'!X43,1,0) -> 0 | Y41: =X43 -> 0 | Z41: =IF(pt_search='Periodic table'!Z43,1,0) -> 0 | AA41: =Z43 -> 0 | AB41: =IF(pt_search='Periodic table'!AB43,1,0) -> 0 | AC41: =AB43 -> 0 | AD41: =IF(pt_search='Periodic table'!AD43,1,0) -> 0 | AE41: =AD43 -> 0 | AF41: =IF(pt_search='Periodic table'!AF43,1,0) -> 0 | AG41: =AF43 -> 0 | AH41: =IF(pt_search='Periodic table'!AH43,1,0) -> 0 | AI41: =AH43 -> 0 | AJ41: =IF(pt_search='Periodic table'!AJ43,1,0) -> 0 | AK41: =AJ43 -> 0 | AL41: =IF(pt_search='Periodic table'!AL43,1,0) -> 0 | AM41: =AL43 -> 0
J42: =IFERROR(IF(pt_search <> "",IF(SEARCH(pt_search,_FV('Periodic table'!J44,"name")),1,0),0),0) -> 0 | K42: =J43 -> 0 | L42: =IFERROR(IF(pt_search <> "",IF(SEARCH(pt_search,_FV('Periodic table'!L44,"name")),1,0),0),0) -> 0 | M42: =L43 -> 0 | N42: =IFERROR(IF(pt_search <> "",IF(SEARCH(pt_search,_FV('Periodic table'!N44,"name")),1,0),0),0) -> 0 | O42: =N43 -> 0 | P42: =IFERROR(IF(pt_search <> "",IF(SEARCH(pt_search,_FV('Periodic table'!P44,"name")),1,0),0),0) -> 0 | Q42: =P43 -> 0 | R42: =IFERROR(IF(pt_search <> "",IF(SEARCH(pt_search,_FV('Periodic table'!R44,"name")),1,0),0),0) -> 0 | S42: =R43 -> 0 | T42: =IFERROR(IF(pt_search <> "",IF(SEARCH(pt_search,_FV('Periodic table'!T44,"name")),1,0),0),0) -> 0 | U42: =T43 -> 0 | V42: =IFERROR(IF(pt_search <> "",IF(SEARCH(pt_search,_FV('Periodic table'!V44,"name")),1,0),0),0) -> 0 | W42: =V43 -> 0 | X42: =IFERROR(IF(pt_search <> "",IF(SEARCH(pt_search,_FV('Periodic table'!X44,"name")),1,0),0),0) -> 0 | Y42: =X43 -> 0 | Z42: =IFERROR(IF(pt_search <> "",IF(SEARCH(pt_search,_FV('Periodic table'!Z44,"name")),1,0),0),0) -> 0 | AA42: =Z43 -> 0 | AB42: =IFERROR(IF(pt_search <> "",IF(SEARCH(pt_search,_FV('Periodic table'!AB44,"name")),1,0),0),0) -> 0 | AC42: =AB43 -> 0 | AD42: =IFERROR(IF(pt_search <> "",IF(SEARCH(pt_search,_FV('Periodic table'!AD44,"name")),1,0),0),0) -> 0 | AE42: =AD43 -> 0 | AF42: =IFERROR(IF(pt_search <> "",IF(SEARCH(pt_search,_FV('Periodic table'!AF44,"name")),1,0),0),0) -> 0 | AG42: =AF43 -> 0 | AH42: =IFERROR(IF(pt_search <> "",IF(SEARCH(pt_search,_FV('Periodic table'!AH44,"name")),1,0),0),0) -> 0 | AI42: =AH43 -> 0 | AJ42: =IFERROR(IF(pt_search <> "",IF(SEARCH(pt_search,_FV('Periodic table'!AJ44,"name")),1,0),0),0) -> 0 | AK42: =AJ43 -> 0 | AL42: =IFERROR(IF(pt_search <> "",IF(SEARCH(pt_search,_FV('Periodic table'!AL44,"name")),1,0),0),0) -> 0 | AM42: =AL43 -> 0
J43: =MAX(J40:J42) -> 0 | K43: =J43 -> 0 | L43: =MAX(L40:L42) -> 0 | M43: =L43 -> 0 | N43: =MAX(N40:N42) -> 0 | O43: =N43 -> 0 | P43: =MAX(P40:P42) -> 0 | Q43: =P43 -> 0 | R43: =MAX(R40:R42) -> 0 | S43: =R43 -> 0 | T43: =MAX(T40:T42) -> 0 | U43: =T43 -> 0 | V43: =MAX(V40:V42) -> 0 | W43: =V43 -> 0 | X43: =MAX(X40:X42) -> 0 | Y43: =X43 -> 0 | Z43: =MAX(Z40:Z42) -> 0 | AA43: =Z43 -> 0 | AB43: =MAX(AB40:AB42) -> 0 | AC43: =AB43 -> 0 | AD43: =MAX(AD40:AD42) -> 0 | AE43: =AD43 -> 0 | AF43: =MAX(AF40:AF42) -> 0 | AG43: =AF43 -> 0 | AH43: =MAX(AH40:AH42) -> 0 | AI43: =AH43 -> 0 | AJ43: =MAX(AJ40:AJ42) -> 0 | AK43: =AJ43 -> 0 | AL43: =MAX(AL40:AL42) -> 0 | AM43: =AL43 -> 0
J45: =IF(pt_search='Periodic table'!J47,1,0) -> 0 | K45: =J48 -> 0 | L45: =IF(pt_search='Periodic table'!L47,1,0) -> 0 | M45: =L48 -> 0 | N45: =IF(pt_search='Periodic table'!N47,1,0) -> 0 | O45: =N48 -> 0 | P45: =IF(pt_search='Periodic table'!P47,1,0) -> 0 | Q45: =P48 -> 0 | R45: =IF(pt_search='Periodic table'!R47,1,0) -> 0 | S45: =R48 -> 0 | T45: =IF(pt_search='Periodic table'!T47,1,0) -> 0 | U45: =T48 -> 0 | V45: =IF(pt_search='Periodic table'!V47,1,0) -> 0 | W45: =V48 -> 0 | X45: =IF(pt_search='Periodic table'!X47,1,0) -> 0 | Y45: =X48 -> 0 | Z45: =IF(pt_search='Periodic table'!Z47,1,0) -> 0 | AA45: =Z48 -> 0 | AB45: =IF(pt_search='Periodic table'!AB47,1,0) -> 0 | AC45: =AB48 -> 0 | AD45: =IF(pt_search='Periodic table'!AD47,1,0) -> 0 | AE45: =AD48 -> 0 | AF45: =IF(pt_search='Periodic table'!AF47,1,0) -> 0 | AG45: =AF48 -> 0 | AH45: =IF(pt_search='Periodic table'!AH47,1,0) -> 0 | AI45: =AH48 -> 0 | AJ45: =IF(pt_search='Periodic table'!AJ47,1,0) -> 0 | AK45: =AJ48 -> 0 | AL45: =IF(pt_search='Periodic table'!AL47,1,0) -> 0 | AM45: =AL48 -> 0
J46: =IF(pt_search='Periodic table'!J48,1,0) -> 0 | K46: =J48 -> 0 | L46: =IF(pt_search='Periodic table'!L48,1,0) -> 0 | M46: =L48 -> 0 | N46: =IF(pt_search='Periodic table'!N48,1,0) -> 0 | O46: =N48 -> 0 | P46: =IF(pt_search='Periodic table'!P48,1,0) -> 0 | Q46: =P48 -> 0 | R46: =IF(pt_search='Periodic table'!R48,1,0) -> 0 | S46: =R48 -> 0 | T46: =IF(pt_search='Periodic table'!T48,1,0) -> 0 | U46: =T48 -> 0 | V46: =IF(pt_search='Periodic table'!V48,1,0) -> 0 | W46: =V48 -> 0 | X46: =IF(pt_search='Periodic table'!X48,1,0) -> 0 | Y46: =X48 -> 0 | Z46: =IF(pt_search='Periodic table'!Z48,1,0) -> 0 | AA46: =Z48 -> 0 | AB46: =IF(pt_search='Periodic table'!AB48,1,0) -> 0 | AC46: =AB48 -> 0 | AD46: =IF(pt_search='Periodic table'!AD48,1,0) -> 0 | AE46: =AD48 -> 0 | AF46: =IF(pt_search='Periodic table'!AF48,1,0) -> 0 | AG46: =AF48 -> 0 | AH46: =IF(pt_search='Periodic table'!AH48,1,0) -> 0 | AI46: =AH48 -> 0 | AJ46: =IF(pt_search='Periodic table'!AJ48,1,0) -> 0 | AK46: =AJ48 -> 0 | AL46: =IF(pt_search='Periodic table'!AL48,1,0) -> 0 | AM46: =AL48 -> 0
J47: =IFERROR(IF(pt_search <> "",IF(SEARCH(pt_search,_FV('Periodic table'!J49,"name")),1,0),0),0) -> 0 | K47: =J48 -> 0 | L47: =IFERROR(IF(pt_search <> "",IF(SEARCH(pt_search,_FV('Periodic table'!L49,"name")),1,0),0),0) -> 0 | M47: =L48 -> 0 | N47: =IFERROR(IF(pt_search <> "",IF(SEARCH(pt_search,_FV('Periodic table'!N49,"name")),1,0),0),0) -> 0 | O47: =N48 -> 0 | P47: =IFERROR(IF(pt_search <> "",IF(SEARCH(pt_search,_FV('Periodic table'!P49,"name")),1,0),0),0) -> 0 | Q47: =P48 -> 0 | R47: =IFERROR(IF(pt_search <> "",IF(SEARCH(pt_search,_FV('Periodic table'!R49,"name")),1,0),0),0) -> 0 | S47: =R48 -> 0 | T47: =IFERROR(IF(pt_search <> "",IF(SEARCH(pt_search,_FV('Periodic table'!T49,"name")),1,0),0),0) -> 0 | U47: =T48 -> 0 | V47: =IFERROR(IF(pt_search <> "",IF(SEARCH(pt_search,_FV('Periodic table'!V49,"name")),1,0),0),0) -> 0 | W47: =V48 -> 0 | X47: =IFERROR(IF(pt_search <> "",IF(SEARCH(pt_search,_FV('Periodic table'!X49,"name")),1,0),0),0) -> 0 | Y47: =X48 -> 0 | Z47: =IFERROR(IF(pt_search <> "",IF(SEARCH(pt_search,_FV('Periodic table'!Z49,"name")),1,0),0),0) -> 0 | AA47: =Z48 -> 0 | AB47: =IFERROR(IF(pt_search <> "",IF(SEARCH(pt_search,_FV('Periodic table'!AB49,"name")),1,0),0),0) -> 0 | AC47: =AB48 -> 0 | AD47: =IFERROR(IF(pt_search <> "",IF(SEARCH(pt_search,_FV('Periodic table'!AD49,"name")),1,0),0),0) -> 0 | AE47: =AD48 -> 0 | AF47: =IFERROR(IF(pt_search <> "",IF(SEARCH(pt_search,_FV('Periodic table'!AF49,"name")),1,0),0),0) -> 0 | AG47: =AF48 -> 0 | AH47: =IFERROR(IF(pt_search <> "",IF(SEARCH(pt_search,_FV('Periodic table'!AH49,"name")),1,0),0),0) -> 0 | AI47: =AH48 -> 0 | AJ47: =IFERROR(IF(pt_search <> "",IF(SEARCH(pt_search,_FV('Periodic table'!AJ49,"name")),1,0),0),0) -> 0 | AK47: =AJ48 -> 0 | AL47: =IFERROR(IF(pt_search <> "",IF(SEARCH(pt_search,_FV('Periodic table'!AL49,"name")),1,0),0),0) -> 0 | AM47: =AL48 -> 0
J48: =MAX(J45:J47) -> 0 | K48: =J48 -> 0 | L48: =MAX(L45:L47) -> 0 | M48: =L48 -> 0 | N48: =MAX(N45:N47) -> 0 | O48: =N48 -> 0 | P48: =MAX(P45:P47) -> 0 | Q48: =P48 -> 0 | R48: =MAX(R45:R47) -> 0 | S48: =R48 -> 0 | T48: =MAX(T45:T47) -> 0 | U48: =T48 -> 0 | V48: =MAX(V45:V47) -> 0 | W48: =V48 -> 0 | X48: =MAX(X45:X47) -> 0 | Y48: =X48 -> 0 | Z48: =MAX(Z45:Z47) -> 0 | AA48: =Z48 -> 0 | AB48: =MAX(AB45:AB47) -> 0 | AC48: =AB48 -> 0 | AD48: =MAX(AD45:AD47) -> 0 | AE48: =AD48 -> 0 | AF48: =MAX(AF45:AF47) -> 0 | AG48: =AF48 -> 0 | AH48: =MAX(AH45:AH47) -> 0 | AI48: =AH48 -> 0 | AJ48: =MAX(AJ45:AJ47) -> 0 | AK48: =AJ48 -> 0 | AL48: =MAX(AL45:AL47) -> 0 | AM48: =AL48 -> 0

Sheet Elements
B3: Compare elemental properties
B4: Use the table below to add elemental properties and compare them.
C5: Click the icon next to an element to view more data about it.
C6: To add more columns of information, select an element and then click on the Add Column icon in the top right corner of the list.
B8: Blank | C8: Element | D8: Atomic symbol
D9: =_FV(Table1[[#This Row],[Element]],"atomic symbol",TRUE) -> H
D10: =_FV(Table1[[#This Row],[Element]],"atomic symbol",TRUE) -> He
D11: =_FV(Table1[[#This Row],[Element]],"atomic symbol",TRUE) -> Li
D12: =_FV(Table1[[#This Row],[Element]],"atomic symbol",TRUE) -> Be
D13: =_FV(Table1[[#This Row],[Element]],"atomic symbol",TRUE) -> B
D14: =_FV(Table1[[#This Row],[Element]],"atomic symbol",TRUE) -> C
D15: =_FV(Table1[[#This Row],[Element]],"atomic symbol",TRUE) -> N
D16: =_FV(Table1[[#This Row],[Element]],"atomic symbol",TRUE) -> O
D17: =_FV(Table1[[#This Row],[Element]],"atomic symbol",TRUE) -> F
D18: =_FV(Table1[[#This Row],[Element]],"atomic symbol",TRUE) -> Ne
D19: =_FV(Table1[[#This Row],[Element]],"atomic symbol",TRUE) -> Na
D20: =_FV(Table1[[#This Row],[Element]],"atomic symbol",TRUE) -> Mg
D21: =_FV(Table1[[#This Row],[Element]],"atomic symbol",TRUE) -> Al
D22: =_FV(Table1[[#This Row],[Element]],"atomic symbol",TRUE) -> Si
D23: =_FV(Table1[[#This Row],[Element]],"atomic symbol",TRUE) -> P
D24: =_FV(Table1[[#This Row],[Element]],"atomic symbol",TRUE) -> S
D25: =_FV(Table1[[#This Row],[Element]],"atomic symbol",TRUE) -> Cl
D26: =_FV(Table1[[#This Row],[Element]],"atomic symbol",TRUE) -> Ar
D27: =_FV(Table1[[#This Row],[Element]],"atomic symbol",TRUE) -> K
D28: =_FV(Table1[[#This Row],[Element]],"atomic symbol",TRUE) -> Ca
D29: =_FV(Table1[[#This Row],[Element]],"atomic symbol",TRUE) -> Sc
D30: =_FV(Table1[[#This Row],[Element]],"atomic symbol",TRUE) -> Ti
D31: =_FV(Table1[[#This Row],[Element]],"atomic symbol",TRUE) -> V
D32: =_FV(Table1[[#This Row],[Element]],"atomic symbol",TRUE) -> Cr
D33: =_FV(Table1[[#This Row],[Element]],"atomic symbol",TRUE) -> Mn
D34: =_FV(Table1[[#This Row],[Element]],"atomic symbol",TRUE) -> Fe
D35: =_FV(Table1[[#This Row],[Element]],"atomic symbol",TRUE) -> Co
D36: =_FV(Table1[[#This Row],[Element]],"atomic symbol",TRUE) -> Ni
D37: =_FV(Table1[[#This Row],[Element]],"atomic symbol",TRUE) -> Cu
D38: =_FV(Table1[[#This Row],[Element]],"atomic symbol",TRUE) -> Zn
D39: =_FV(Table1[[#This Row],[Element]],"atomic symbol",TRUE) -> Ga
D40: =_FV(Table1[[#This Row],[Element]],"atomic symbol",TRUE) -> Ge
D41: =_FV(Table1[[#This Row],[Element]],"atomic symbol",TRUE) -> As
D42: =_FV(Table1[[#This Row],[Element]],"atomic symbol",TRUE) -> Se
D43: =_FV(Table1[[#This Row],[Element]],"atomic symbol",TRUE) -> Br
D44: =_FV(Table1[[#This Row],[Element]],"atomic symbol",TRUE) -> Kr
D45: =_FV(Table1[[#This Row],[Element]],"atomic symbol",TRUE) -> Rb
D46: =_FV(Table1[[#This Row],[Element]],"atomic symbol",TRUE) -> Sr
D47: =_FV(Table1[[#This Row],[Element]],"atomic symbol",TRUE) -> Y
D48: =_FV(Table1[[#This Row],[Element]],"atomic symbol",TRUE) -> Zr
D49: =_FV(Table1[[#This Row],[Element]],"atomic symbol",TRUE) -> Nb
D50: =_FV(Table1[[#This Row],[Element]],"atomic symbol",TRUE) -> Mo
D51: =_FV(Table1[[#This Row],[Element]],"atomic symbol",TRUE) -> Tc
D52: =_FV(Table1[[#This Row],[Element]],"atomic symbol",TRUE) -> Ru
D53: =_FV(Table1[[#This Row],[Element]],"atomic symbol",TRUE) -> Rh
D54: =_FV(Table1[[#This Row],[Element]],"atomic symbol",TRUE) -> Pd
D55: =_FV(Table1[[#This Row],[Element]],"atomic symbol",TRUE) -> Ag
D56: =_FV(Table1[[#This Row],[Element]],"atomic symbol",TRUE) -> Cd
D57: =_FV(Table1[[#This Row],[Element]],"atomic symbol",TRUE) -> In
D58: =_FV(Table1[[#This Row],[Element]],"atomic symbol",TRUE) -> Sn
D59: =_FV(Table1[[#This Row],[Element]],"atomic symbol",TRUE) -> Sb
D60: =_FV(Table1[[#This Row],[Element]],"atomic symbol",TRUE) -> Te
D61: =_FV(Table1[[#This Row],[Element]],"atomic symbol",TRUE) -> I
D62: =_FV(Table1[[#This Row],[Element]],"atomic symbol",TRUE) -> Xe
D63: =_FV(Table1[[#This Row],[Element]],"atomic symbol",TRUE) -> Cs
D64: =_FV(Table1[[#This Row],[Element]],"atomic symbol",TRUE) -> Ba
D65: =_FV(Table1[[#This Row],[Element]],"atomic symbol",TRUE) -> La
D66: =_FV(Table1[[#This Row],[Element]],"atomic symbol",TRUE) -> Ce
D67: =_FV(Table1[[#This Row],[Element]],"atomic symbol",TRUE) -> Pr
D68: =_FV(Table1[[#This Row],[Element]],"atomic symbol",TRUE) -> Nd
D69: =_FV(Table1[[#This Row],[Element]],"atomic symbol",TRUE) -> Pm
D70: =_FV(Table1[[#This Row],[Element]],"atomic symbol",TRUE) -> Sm
D71: =_FV(Table1[[#This Row],[Element]],"atomic symbol",TRUE) -> Eu
D72: =_FV(Table1[[#This Row],[Element]],"atomic symbol",TRUE) -> Gd
D73: =_FV(Table1[[#This Row],[Element]],"atomic symbol",TRUE) -> Tb
D74: =_FV(Table1[[#This Row],[Element]],"atomic symbol",TRUE) -> Dy
D75: =_FV(Table1[[#This Row],[Element]],"atomic symbol",TRUE) -> Ho
D76: =_FV(Table1[[#This Row],[Element]],"atomic symbol",TRUE) -> Er
D77: =_FV(Table1[[#This Row],[Element]],"atomic symbol",TRUE) -> Tm
D78: =_FV(Table1[[#This Row],[Element]],"atomic symbol",TRUE) -> Yb
D79: =_FV(Table1[[#This Row],[Element]],"atomic symbol",TRUE) -> Lu
D80: =_FV(Table1[[#This Row],[Element]],"atomic symbol",TRUE) -> Hf
D81: =_FV(Table1[[#This Row],[Element]],"atomic symbol",TRUE) -> Ta
D82: =_FV(Table1[[#This Row],[Element]],"atomic symbol",TRUE) -> W
D83: =_FV(Table1[[#This Row],[Element]],"atomic symbol",TRUE) -> Re
D84: =_FV(Table1[[#This Row],[Element]],"atomic symbol",TRUE) -> Os
D85: =_FV(Table1[[#This Row],[Element]],"atomic symbol",TRUE) -> Ir
D86: =_FV(Table1[[#This Row],[Element]],"atomic symbol",TRUE) -> Pt
D87: =_FV(Table1[[#This Row],[Element]],"atomic symbol",TRUE) -> Au
D88: =_FV(Table1[[#This Row],[Element]],"atomic symbol",TRUE) -> Hg
D89: =_FV(Table1[[#This Row],[Element]],"atomic symbol",TRUE) -> Tl
D90: =_FV(Table1[[#This Row],[Element]],"atomic symbol",TRUE) -> Pb
D91: =_FV(Table1[[#This Row],[Element]],"atomic symbol",TRUE) -> Bi
D92: =_FV(Table1[[#This Row],[Element]],"atomic symbol",TRUE) -> Po
D93: =_FV(Table1[[#This Row],[Element]],"atomic symbol",TRUE) -> At
D94: =_FV(Table1[[#This Row],[Element]],"atomic symbol",TRUE) -> Rn
D95: =_FV(Table1[[#This Row],[Element]],"atomic symbol",TRUE) -> Fr
D96: =_FV(Table1[[#This Row],[Element]],"atomic symbol",TRUE) -> Ra
D97: =_FV(Table1[[#This Row],[Element]],"atomic symbol",TRUE) -> Ac
D98: =_FV(Table1[[#This Row],[Element]],"atomic symbol",TRUE) -> Th
D99: =_FV(Table1[[#This Row],[Element]],"atomic symbol",TRUE) -> Pa
D100: =_FV(Table1[[#This Row],[Element]],"atomic symbol",TRUE) -> U
D101: =_FV(Table1[[#This Row],[Element]],"atomic symbol",TRUE) -> Np
D102: =_FV(Table1[[#This Row],[Element]],"atomic symbol",TRUE) -> Pu
D103: =_FV(Table1[[#This Row],[Element]],"atomic symbol",TRUE) -> Am
D104: =_FV(Table1[[#This Row],[Element]],"atomic symbol",TRUE) -> Cm
D105: =_FV(Table1[[#This Row],[Element]],"atomic symbol",TRUE) -> Bk
D106: =_FV(Table1[[#This Row],[Element]],"atomic symbol",TRUE) -> Cf
D107: =_FV(Table1[[#This Row],[Element]],"atomic symbol",TRUE) -> Es
D108: =_FV(Table1[[#This Row],[Element]],"atomic symbol",TRUE) -> Fm
D109: =_FV(Table1[[#This Row],[Element]],"atomic symbol",TRUE) -> Md
D110: =_FV(Table1[[#This Row],[Element]],"atomic symbol",TRUE) -> No
D111: =_FV(Table1[[#This Row],[Element]],"atomic symbol",TRUE) -> Lr
D112: =_FV(Table1[[#This Row],[Element]],"atomic symbol",TRUE) -> Rf
D113: =_FV(Table1[[#This Row],[Element]],"atomic symbol",TRUE) -> Db
D114: =_FV(Table1[[#This Row],[Element]],"atomic symbol",TRUE) -> Sg
D115: =_FV(Table1[[#This Row],[Element]],"atomic symbol",TRUE) -> Bh
D116: =_FV(Table1[[#This Row],[Element]],"atomic symbol",TRUE) -> Hs
D117: =_FV(Table1[[#This Row],[Element]],"atomic symbol",TRUE) -> Mt
D118: =_FV(Table1[[#This Row],[Element]],"atomic symbol",TRUE) -> Ds
D119: =_FV(Table1[[#This Row],[Element]],"atomic symbol",TRUE) -> Rg
D120: =_FV(Table1[[#This Row],[Element]],"atomic symbol",TRUE) -> Cn
D121: =_FV(Table1[[#This Row],[Element]],"atomic symbol",TRUE) -> Nh
D122: =_FV(Table1[[#This Row],[Element]],"atomic symbol",TRUE) -> Fl
D123: =_FV(Table1[[#This Row],[Element]],"atomic symbol",TRUE) -> Mc
D124: =_FV(Table1[[#This Row],[Element]],"atomic symbol",TRUE) -> Lv
D125: =_FV(Table1[[#This Row],[Element]],"atomic symbol",TRUE) -> Ts
D126: =_FV(Table1[[#This Row],[Element]],"atomic symbol",TRUE) -> Og

Sheet Compound list
B3: Track chemical compounds
B4: Keep track of your favorite chemical compounds and use the Compound properties sheet to learn more about them. To add compounds to the list, edit the examples or type below the last compound in the blue highlighted cell.
C5: Click the icon next to a compound to view more data about it.
C6: If you don't see data for a chemical compond, you may need to convert it to the Chemistry data type: select the chemical compound name, go to the Data tab, and in the Data Types gallery, select the Chemistry icon.
C7: To add more columns of information, select an element and then click on the Add Column icon in the top right corner of the list.
B9: Blank | C9: Compound | D9: Formula
D10: =IFERROR(SUBSTITUTE(SUBSTITUTE(SUBSTITUTE(SUBSTITUTE(SUBSTITUTE(SUBSTITUTE(SUBSTITUTE(SUBSTITUTE(SUBSTITUTE(SUBSTITUTE(_FV(C10,"formula string",TRUE),"0","₀"),"1","₁"),"2","₂"),"3","₃"),"4","₄"),"5","₅"),"6","₆"),"7","₇"),"8","₈"),"9","₉"),"") -> NH₃
D11: =IFERROR(SUBSTITUTE(SUBSTITUTE(SUBSTITUTE(SUBSTITUTE(SUBSTITUTE(SUBSTITUTE(SUBSTITUTE(SUBSTITUTE(SUBSTITUTE(SUBSTITUTE(_FV(C11,"formula string",TRUE),"0","₀"),"1","₁"),"2","₂"),"3","₃"),"4","₄"),"5","₅"),"6","₆"),"7","₇"),"8","₈"),"9","₉"),"") -> CO₂
D12: =IFERROR(SUBSTITUTE(SUBSTITUTE(SUBSTITUTE(SUBSTITUTE(SUBSTITUTE(SUBSTITUTE(SUBSTITUTE(SUBSTITUTE(SUBSTITUTE(SUBSTITUTE(_FV(C12,"formula string",TRUE),"0","₀"),"1","₁"),"2","₂"),"3","₃"),"4","₄"),"5","₅"),"6","₆"),"7","₇"),"8","₈"),"9","₉"),"") -> H₂O
D13: =IFERROR(SUBSTITUTE(SUBSTITUTE(SUBSTITUTE(SUBSTITUTE(SUBSTITUTE(SUBSTITUTE(SUBSTITUTE(SUBSTITUTE(SUBSTITUTE(SUBSTITUTE(_FV(C13,"formula string",TRUE),"0","₀"),"1","₁"),"2","₂"),"3","₃"),"4","₄"),"5","₅"),"6","₆"),"7","₇"),"8","₈"),"9","₉"),"") -> H₂O₂
D14: =IFERROR(SUBSTITUTE(SUBSTITUTE(SUBSTITUTE(SUBSTITUTE(SUBSTITUTE(SUBSTITUTE(SUBSTITUTE(SUBSTITUTE(SUBSTITUTE(SUBSTITUTE(_FV(C14,"formula string",TRUE),"0","₀"),"1","₁"),"2","₂"),"3","₃"),"4","₄"),"5","₅"),"6","₆"),"7","₇"),"8","₈"),"9","₉"),"") -> CH₄
D15: =IFERROR(SUBSTITUTE(SUBSTITUTE(SUBSTITUTE(SUBSTITUTE(SUBSTITUTE(SUBSTITUTE(SUBSTITUTE(SUBSTITUTE(SUBSTITUTE(SUBSTITUTE(_FV(C15,"formula string",TRUE),"0","₀"),"1","₁"),"2","₂"),"3","₃"),"4","₄"),"5","₅"),"6","₆"),"7","₇"),"8","₈"),"9","₉"),"") -> O₂U
D16: =IFERROR(SUBSTITUTE(SUBSTITUTE(SUBSTITUTE(SUBSTITUTE(SUBSTITUTE(SUBSTITUTE(SUBSTITUTE(SUBSTITUTE(SUBSTITUTE(SUBSTITUTE(_FV(C16,"formula string",TRUE),"0","₀"),"1","₁"),"2","₂"),"3","₃"),"4","₄"),"5","₅"),"6","₆"),"7","₇"),"8","₈"),"9","₉"),"") -> C₁₉H₁₇ClFN₃O₅S
D17: =IFERROR(SUBSTITUTE(SUBSTITUTE(SUBSTITUTE(SUBSTITUTE(SUBSTITUTE(SUBSTITUTE(SUBSTITUTE(SUBSTITUTE(SUBSTITUTE(SUBSTITUTE(_FV(C17,"formula string",TRUE),"0","₀"),"1","₁"),"2","₂"),"3","₃"),"4","₄"),"5","₅"),"6","₆"),"7","₇"),"8","₈"),"9","₉"),"") -> NaCl

Sheet Compound properties
B3: Explore chemical compound properties | V3: =IFERROR(_FV(B5,"structure diagram",TRUE), "") -> 
B4: Select the cell below and choose a chemical using the dropdown arrow.
U5: blank | V5: Formula | W5: Elements
B6: =IFERROR(_xlfn.TEXTJOIN(", ",TRUE,_FV(B5,"alternate names",TRUE)),"") -> ammonia anhydrous, ammonia gas, azane, nitro-sil, spirit of hartshorn | V6: =IFERROR(SUBSTITUTE(SUBSTITUTE(SUBSTITUTE(SUBSTITUTE(SUBSTITUTE(SUBSTITUTE(SUBSTITUTE(SUBSTITUTE(SUBSTITUTE(SUBSTITUTE(_FV(B5,"formula string",TRUE),"0","₀"),"1","₁"),"2","₂"),"3","₃"),"4","₄"),"5","₅"),"6","₆"),"7","₇"),"8","₈"),"9","₉"),"") -> NH₃ | W6: =TRANSPOSE(_FV(B5,"element types",TRUE)) -> 
B8: Molar mass | H8: Density | N8: Boiling point | V8: Periodic table properties
B9: =IFERROR(_xlfn.FIELDVALUE($B$5,B8),"") -> 17.031000 | H9: =IFERROR(_xlfn.FIELDVALUE($B$5,H8),"") -> 0.000696 | N9: =IFERROR(_xlfn.FIELDVALUE($B$5,N8),"") -> -33.330000 | U9: ✓ | V9: Block | W9: =IFERROR(_FV(W$6,"block"),"") -> s | X9: =IFERROR(_FV(X$6,"block"),"") -> p | Y9: =IFERROR(_FV(Y$6,"block"),"") ->  | Z9: =IFERROR(_FV(Z$6,"block"),"") ->  | AA9: =IFERROR(_FV(AA$6,"block"),"") ->  | AB9: =IFERROR(_FV(AB$6,"block"),"") ->  | AC9: =IFERROR(_FV(AC$6,"block"),"") ->  | AD9: =IFERROR(_FV(AD$6,"atomic symbol",TRUE),"") ->  | AE9: =IFERROR(_FV(AE$6,"atomic symbol",TRUE),"") ->  | AF9: =IFERROR(_FV(AF$6,"atomic symbol",TRUE),"") -> 
U10: ✓ | V10: Group | W10: =IFERROR(_FV(W$6,"group"),"") -> 1 | X10: =IFERROR(_FV(X$6,"group"),"") -> 15 | Y10: =IFERROR(_FV(Y$6,"group"),"") ->  | Z10: =IFERROR(_FV(Z$6,"group"),"") ->  | AA10: =IFERROR(_FV(AA$6,"group"),"") ->  | AB10: =IFERROR(_FV(AB$6,"group"),"") ->  | AC10: =IFERROR(_FV(AC$6,"group"),"") ->  | AD10: =IFERROR(_FV(AD$6,"atomic number",TRUE),"") ->  | AE10: =IFERROR(_FV(AE$6,"atomic number",TRUE),"") ->  | AF10: =IFERROR(_FV(AF$6,"atomic number",TRUE),"") -> 
B11: H | S11: He | U11: ✓ | V11: Period | W11: =IFERROR(_FV(W$6,"period"),"") -> 1 | X11: =IFERROR(_FV(X$6,"period"),"") -> 2 | Y11: =IFERROR(_FV(Y$6,"period"),"") ->  | Z11: =IFERROR(_FV(Z$6,"period"),"") ->  | AA11: =IFERROR(_FV(AA$6,"period"),"") ->  | AB11: =IFERROR(_FV(AB$6,"period"),"") ->  | AC11: =IFERROR(_FV(AC$6,"period"),"") ->  | AD11: =IFERROR(_FV(AD$6,"atomic mass",TRUE),"") ->  | AE11: =IFERROR(_FV(AE$6,"atomic mass",TRUE),"") ->  | AF11: =IFERROR(_FV(AF$6,"atomic mass",TRUE),"") -> 
B12: Li | C12: Be | N12: B | O12: C | P12: N | Q12: O | R12: F | S12: Ne | AD12: =IFERROR(_FV(AD$6,"melting point",TRUE),"") ->  | AE12: =IFERROR(_FV(AE$6,"melting point",TRUE),"") ->  | AF12: =IFERROR(_FV(AF$6,"melting point",TRUE),"") -> 
B13: Na | C13: Mg | N13: Al | O13: Si | P13: P | Q13: S | R13: Cl | S13: Ar | V13: Basic atomic properties | AD13: =IFERROR(_FV(AD$6,"boiling point",TRUE),"") ->  | AE13: =IFERROR(_FV(AE$6,"boiling point",TRUE),"") ->  | AF13: =IFERROR(_FV(AF$6,"boiling point",TRUE),"") -> 
B14: K | C14: Ca | D14: Sc | E14: Ti | F14: V | G14: Cr | H14: Mn | I14: Fe | J14: Co | K14: Ni | L14: Cu | M14: Zn | N14: Ga | O14: Ge | P14: As | Q14: Se | R14: Br | S14: Kr | V14: Atomic symbol | W14: =IFERROR(_FV(W$6,"atomic symbol",TRUE),"") -> H | X14: =IFERROR(_FV(X$6,"atomic symbol",TRUE),"") -> N | Y14: =IFERROR(_FV(Y$6,"atomic symbol",TRUE),"") ->  | Z14: =IFERROR(_FV(Z$6,"atomic symbol",TRUE),"") ->  | AA14: =IFERROR(_FV(AA$6,"atomic symbol",TRUE),"") ->  | AB14: =IFERROR(_FV(AB$6,"atomic symbol",TRUE),"") ->  | AC14: =IFERROR(_FV(AC$6,"atomic symbol",TRUE),"") -> 
B15: Rb | C15: Sr | D15: Y | E15: Zr | F15: Nb | G15: Mo | H15: Tc | I15: Ru | J15: Rh | K15: Pd | L15: Ag | M15: Cd | N15: In | O15: Sn | P15: Sb | Q15: Te | R15: I | S15: Xe | V15: Atomic number | W15: =IFERROR(_FV(W$6,"atomic number",TRUE),"") -> 1 | X15: =IFERROR(_FV(X$6,"atomic number",TRUE),"") -> 7 | Y15: =IFERROR(_FV(Y$6,"atomic number",TRUE),"") ->  | Z15: =IFERROR(_FV(Z$6,"atomic number",TRUE),"") ->  | AA15: =IFERROR(_FV(AA$6,"atomic number",TRUE),"") ->  | AB15: =IFERROR(_FV(AB$6,"atomic number",TRUE),"") ->  | AC15: =IFERROR(_FV(AC$6,"atomic number",TRUE),"") -> 
B16: Cs | C16: Ba | D16: * | E16: Hf | F16: Ta | G16: W | H16: Re | I16: Os | J16: Ir | K16: Pt | L16: Au | M16: Hg | N16: Tl | O16: Pb | P16: Bi | Q16: Po | R16: At | S16: Rn | U16: ✓ | V16: Atomic mass | W16: =IFERROR(_FV(W$6,"atomic mass",TRUE),"") -> 1.008 | X16: =IFERROR(_FV(X$6,"atomic mass",TRUE),"") -> 14.007 | Y16: =IFERROR(_FV(Y$6,"atomic mass",TRUE),"") ->  | Z16: =IFERROR(_FV(Z$6,"atomic mass",TRUE),"") ->  | AA16: =IFERROR(_FV(AA$6,"atomic mass",TRUE),"") ->  | AB16: =IFERROR(_FV(AB$6,"atomic mass",TRUE),"") ->  | AC16: =IFERROR(_FV(AC$6,"atomic mass",TRUE),"") ->  | AD16: =IFERROR(_FV(AD$6,"block"),"") ->  | AE16: =IFERROR(_FV(AE$6,"block"),"") ->  | AF16: =IFERROR(_FV(AF$6,"block"),"") -> 
B17: Fr | C17: Ra | D17: ** | E17: Rf | F17: Db | G17: Sg | H17: Bh | I17: Hs | J17: Mt | K17: Ds | L17: Rg | M17: Cn | N17: Nh | O17: Fl | P17: Mc | Q17: Lv | R17: Ts | S17: Og | V17: Melting point | W17: =IFERROR(_FV(W$6,"melting point",TRUE),"") -> -259.14 | X17: =IFERROR(_FV(X$6,"melting point",TRUE),"") -> -210.1 | Y17: =IFERROR(_FV(Y$6,"melting point",TRUE),"") ->  | Z17: =IFERROR(_FV(Z$6,"melting point",TRUE),"") ->  | AA17: =IFERROR(_FV(AA$6,"melting point",TRUE),"") ->  | AB17: =IFERROR(_FV(AB$6,"melting point",TRUE),"") ->  | AC17: =IFERROR(_FV(AC$6,"melting point",TRUE),"") ->  | AD17: =IFERROR(_FV(AD$6,"group"),"") ->  | AE17: =IFERROR(_FV(AE$6,"group"),"") ->  | AF17: =IFERROR(_FV(AF$6,"group"),"") -> 
U18: ✓ | V18: Boiling point | W18: =IFERROR(_FV(W$6,"boiling point",TRUE),"") -> -252.87 | X18: =IFERROR(_FV(X$6,"boiling point",TRUE),"") -> -195.79 | Y18: =IFERROR(_FV(Y$6,"boiling point",TRUE),"") ->  | Z18: =IFERROR(_FV(Z$6,"boiling point",TRUE),"") ->  | AA18: =IFERROR(_FV(AA$6,"boiling point",TRUE),"") ->  | AB18: =IFERROR(_FV(AB$6,"boiling point",TRUE),"") ->  | AC18: =IFERROR(_FV(AC$6,"boiling point",TRUE),"") ->  | AD18: =IFERROR(_FV(AD$6,"period"),"") ->  | AE18: =IFERROR(_FV(AE$6,"period"),"") ->  | AF18: =IFERROR(_FV(AF$6,"period"),"") -> 
D19: * | E19: La | F19: Ce | G19: Pr | H19: Nd | I19: Pm | J19: Sm | K19: Eu | L19: Gd | M19: Tb | N19: Dy | O19: Ho | P19: Er | Q19: Tm | R19: Yb | S19: Lu
D20: ** | E20: Ac | F20: Th | G20: Pa | H20: U | I20: Np | J20: Pu | K20: Am | L20: Cm | M20: Bk | N20: Cf | O20: Es | P20: Fm | Q20: Md | R20: No | S20: Lr | V20: Chemical properties
U21: ✓ | V21: Valence | W21: =IFERROR(_FV(W$6,"valence"),"") -> 1 | X21: =IFERROR(_FV(X$6,"valence"),"") -> 3 | Y21: =IFERROR(_FV(Y$6,"valence"),"") ->  | Z21: =IFERROR(_FV(Z$6,"valence"),"") ->  | AA21: =IFERROR(_FV(AA$6,"valence"),"") ->  | AB21: =IFERROR(_FV(AB$6,"valence"),"") ->  | AC21: =IFERROR(_FV(AC$6,"valence"),"") ->  | AD21: =IFERROR(_FV(AD$6,"valence"),"") ->  | AE21: =IFERROR(_FV(AE$6,"valence"),"") ->  | AF21: =IFERROR(_FV(AF$6,"valence"),"") -> 
U22: ✓ | V22: Electronegativity | W22: =IFERROR(_FV(W$6,"electronegativity"),"") -> 2.2 | X22: =IFERROR(_FV(X$6,"electronegativity"),"") -> 3.04 | Y22: =IFERROR(_FV(Y$6,"electronegativity"),"") ->  | Z22: =IFERROR(_FV(Z$6,"electronegativity"),"") ->  | AA22: =IFERROR(_FV(AA$6,"electronegativity"),"") ->  | AB22: =IFERROR(_FV(AB$6,"electronegativity"),"") ->  | AC22: =IFERROR(_FV(AC$6,"electronegativity"),"") ->  | AD22: =IFERROR(_FV(AD$6,"electronegativity"),"") ->  | AE22: =IFERROR(_FV(AE$6,"electronegativity"),"") ->  | AF22: =IFERROR(_FV(AF$6,"electronegativity"),"") -> 
U23: ✓ | V23: Electron affinity | W23: =IFERROR(_FV(W$6,"electron affinity",TRUE),"") -> 72.8 | X23: =IFERROR(_FV(X$6,"electron affinity",TRUE),"") -> 7 | Y23: =IFERROR(_FV(Y$6,"electron affinity",TRUE),"") ->  | Z23: =IFERROR(_FV(Z$6,"electron affinity",TRUE),"") ->  | AA23: =IFERROR(_FV(AA$6,"electron affinity",TRUE),"") ->  | AB23: =IFERROR(_FV(AB$6,"electron affinity",TRUE),"") ->  | AC23: =IFERROR(_FV(AC$6,"electron affinity",TRUE),"") ->  | AD23: =IFERROR(_FV(AD$6,"electron affinity",TRUE),"") ->  | AE23: =IFERROR(_FV(AE$6,"electron affinity",TRUE),"") ->  | AF23: =IFERROR(_FV(AF$6,"electron affinity",TRUE),"") -> 
V25: Atomic size
U26: ✓ | V26: Atomic radius | W26: =IFERROR(_FV(W6,"atomic radius",TRUE),"") -> 53 | X26: =IFERROR(_FV(X6,"atomic radius",TRUE),"") -> 56 | Y26: =IFERROR(_FV(Y6,"atomic radius",TRUE),"") ->  | Z26: =IFERROR(_FV(Z6,"atomic radius",TRUE),"") ->  | AA26: =IFERROR(_FV(AA6,"atomic radius",TRUE),"") ->  | AB26: =IFERROR(_FV(AB6,"atomic radius",TRUE),"") ->  | AC26: =IFERROR(_FV(AC6,"atomic radius",TRUE),"") ->  | AD26: =IFERROR(_FV(AD6,"atomic radius",TRUE),"") ->  | AE26: =IFERROR(_FV(AE6,"atomic radius",TRUE),"") ->  | AF26: =IFERROR(_FV(AF6,"atomic radius",TRUE),"") -> 
U27: ✓ | V27: Covalent radius | W27: =IFERROR(_FV(W6,"covalent radius",TRUE),"") -> 31 | X27: =IFERROR(_FV(X6,"covalent radius",TRUE),"") -> 71 | Y27: =IFERROR(_FV(Y6,"covalent radius",TRUE),"") ->  | Z27: =IFERROR(_FV(Z6,"covalent radius",TRUE),"") ->  | AA27: =IFERROR(_FV(AA6,"covalent radius",TRUE),"") ->  | AB27: =IFERROR(_FV(AB6,"covalent radius",TRUE),"") ->  | AC27: =IFERROR(_FV(AC6,"covalent radius",TRUE),"") ->  | AD27: =IFERROR(_FV(AD6,"covalent radius",TRUE),"") ->  | AE27: =IFERROR(_FV(AE6,"covalent radius",TRUE),"") ->  | AF27: =IFERROR(_FV(AF6,"covalent radius",TRUE),"") -> 
U28: ✓ | V28: Van der Waals radius | W28: =IFERROR(_FV(W6,"van der Waals radius",TRUE),"") -> 120 | X28: =IFERROR(_FV(X6,"van der Waals radius",TRUE),"") -> 155 | Y28: =IFERROR(_FV(Y6,"van der Waals radius",TRUE),"") ->  | Z28: =IFERROR(_FV(Z6,"van der Waals radius",TRUE),"") ->  | AA28: =IFERROR(_FV(AA6,"van der Waals radius",TRUE),"") ->  | AB28: =IFERROR(_FV(AB6,"van der Waals radius",TRUE),"") ->  | AC28: =IFERROR(_FV(AC6,"van der Waals radius",TRUE),"") ->  | AD28: =IFERROR(_FV(AD6,"van der Waals radius",TRUE),"") ->  | AE28: =IFERROR(_FV(AE6,"van der Waals radius",TRUE),"") ->  | AF28: =IFERROR(_FV(AF6,"van der Waals radius",TRUE),"") -> 
V30: Abundance properties
U31: ✓ | V31: Universe | W31: =IFERROR(_FV(W6,"universe abundance",TRUE),"") -> 75.00 | X31: =IFERROR(_FV(X6,"universe abundance",TRUE),"") -> 0.100000 | Y31: =IFERROR(_FV(Y6,"universe abundance",TRUE),"") ->  | Z31: =IFERROR(_FV(Z6,"universe abundance",TRUE),"") ->  | AA31: =IFERROR(_FV(AA6,"universe abundance",TRUE),"") ->  | AB31: =IFERROR(_FV(AB6,"universe abundance",TRUE),"") ->  | AC31: =IFERROR(_FV(AC6,"universe abundance",TRUE),"") ->  | AD31: =IFERROR(_FV(AD6,"universe abundance",TRUE),"") ->  | AE31: =IFERROR(_FV(AE6,"universe abundance",TRUE),"") ->  | AF31: =IFERROR(_FV(AF6,"universe abundance",TRUE),"") -> 
U32: ✓ | V32: Solar | W32: =IFERROR(_FV(W6,"solar abundance",TRUE),"") -> 75.00 | X32: =IFERROR(_FV(X6,"solar abundance",TRUE),"") -> 0.100000 | Y32: =IFERROR(_FV(Y6,"solar abundance",TRUE),"") ->  | Z32: =IFERROR(_FV(Z6,"solar abundance",TRUE),"") ->  | AA32: =IFERROR(_FV(AA6,"solar abundance",TRUE),"") ->  | AB32: =IFERROR(_FV(AB6,"solar abundance",TRUE),"") ->  | AC32: =IFERROR(_FV(AC6,"solar abundance",TRUE),"") ->  | AD32: =IFERROR(_FV(AD6,"solar abundance",TRUE),"") ->  | AE32: =IFERROR(_FV(AE6,"solar abundance",TRUE),"") ->  | AF32: =IFERROR(_FV(AF6,"solar abundance",TRUE),"") -> 
U33: ✓ | V33: Meterorite | W33: =IFERROR(_FV(W6,"meteorite abundance",TRUE),"") -> 2.40 | X33: =IFERROR(_FV(X6,"meteorite abundance",TRUE),"") -> 0.140000 | Y33: =IFERROR(_FV(Y6,"meteorite abundance",TRUE),"") ->  | Z33: =IFERROR(_FV(Z6,"meteorite abundance",TRUE),"") ->  | AA33: =IFERROR(_FV(AA6,"meteorite abundance",TRUE),"") ->  | AB33: =IFERROR(_FV(AB6,"meteorite abundance",TRUE),"") ->  | AC33: =IFERROR(_FV(AC6,"meteorite abundance",TRUE),"") ->  | AD33: =IFERROR(_FV(AD6,"meteorite abundance",TRUE),"") ->  | AE33: =IFERROR(_FV(AE6,"meteorite abundance",TRUE),"") ->  | AF33: =IFERROR(_FV(AF6,"meteorite abundance",TRUE),"") -> 
U34: ✓ | V34: Crust | W34: =IFERROR(_FV(W6,"crust abundance",TRUE),"") -> 0.15 | X34: =IFERROR(_FV(X6,"crust abundance",TRUE),"") -> 0.002000 | Y34: =IFERROR(_FV(Y6,"crust abundance",TRUE),"") ->  | Z34: =IFERROR(_FV(Z6,"crust abundance",TRUE),"") ->  | AA34: =IFERROR(_FV(AA6,"crust abundance",TRUE),"") ->  | AB34: =IFERROR(_FV(AB6,"crust abundance",TRUE),"") ->  | AC34: =IFERROR(_FV(AC6,"crust abundance",TRUE),"") ->  | AD34: =IFERROR(_FV(AD6,"crust abundance",TRUE),"") ->  | AE34: =IFERROR(_FV(AE6,"crust abundance",TRUE),"") ->  | AF34: =IFERROR(_FV(AF6,"crust abundance",TRUE),"") -> 
U35: ✓ | V35: Ocean | W35: =IFERROR(_FV(W6,"ocean abundance",TRUE),"") -> 11.00 | X35: =IFERROR(_FV(X6,"ocean abundance",TRUE),"") -> 0.000050 | Y35: =IFERROR(_FV(Y6,"ocean abundance",TRUE),"") ->  | Z35: =IFERROR(_FV(Z6,"ocean abundance",TRUE),"") ->  | AA35: =IFERROR(_FV(AA6,"ocean abundance",TRUE),"") ->  | AB35: =IFERROR(_FV(AB6,"ocean abundance",TRUE),"") ->  | AC35: =IFERROR(_FV(AC6,"ocean abundance",TRUE),"") ->  | AD35: =IFERROR(_FV(AD6,"ocean abundance",TRUE),"") ->  | AE35: =IFERROR(_FV(AE6,"ocean abundance",TRUE),"") ->  | AF35: =IFERROR(_FV(AF6,"ocean abundance",TRUE),"") -> 
U36: ✓ | V36: Human | W36: =IFERROR(_FV(W6,"human abundance",TRUE),"") -> 10.00 | X36: =IFERROR(_FV(X6,"human abundance",TRUE),"") -> 2.600000 | Y36: =IFERROR(_FV(Y6,"human abundance",TRUE),"") ->  | Z36: =IFERROR(_FV(Z6,"human abundance",TRUE),"") ->  | AA36: =IFERROR(_FV(AA6,"human abundance",TRUE),"") ->  | AB36: =IFERROR(_FV(AB6,"human abundance",TRUE),"") ->  | AC36: =IFERROR(_FV(AC6,"human abundance",TRUE),"") ->  | AD36: =IFERROR(_FV(AD6,"human abundance",TRUE),"") ->  | AE36: =IFERROR(_FV(AE6,"human abundance",TRUE),"") ->  | AF36: =IFERROR(_FV(AF6,"human abundance",TRUE),"") -> 
V38: Crystallographic properties
V39: Lattice angles | W39: =IFERROR(_FV(W6,"lattice angles",TRUE),"") -> 90 | X39: =IFERROR(_FV(X6,"lattice angles",TRUE),"") -> 90 | Y39: =IFERROR(_FV(Y6,"lattice angles",TRUE),"") ->  | Z39: =IFERROR(_FV(Z6,"lattice angles",TRUE),"") ->  | AA39: =IFERROR(_FV(AA6,"lattice angles",TRUE),"") ->  | AB39: =IFERROR(_FV(AB6,"lattice angles",TRUE),"") ->  | AC39: =IFERROR(_FV(AC6,"lattice angles",TRUE),"") ->  | AD39: =IFERROR(_FV(AD6,"lattice angles",TRUE),"") ->  | AE39: =IFERROR(_FV(AE6,"lattice angles",TRUE),"") ->  | AF39: =IFERROR(_FV(AF6,"lattice angles",TRUE),"") -> 
W40: 90 | X40: 90
W41: 120 | X41: 120
V42: Lattice constants | W42: =IFERROR(_FV(W6,"lattice constants",TRUE),"") -> 470 | X42: =IFERROR(_FV(X6,"lattice constants",TRUE),"") -> 386.1 | Y42: =IFERROR(_FV(Y6,"lattice constants",TRUE),"") ->  | Z42: =IFERROR(_FV(Z6,"lattice constants",TRUE),"") ->  | AA42: =IFERROR(_FV(AA6,"lattice constants",TRUE),"") ->  | AB42: =IFERROR(_FV(AB6,"lattice constants",TRUE),"") ->  | AC42: =IFERROR(_FV(AC6,"lattice constants",TRUE),"") ->  | AD42: =IFERROR(_FV(AD6,"lattice constants",TRUE),"") ->  | AE42: =IFERROR(_FV(AE6,"lattice constants",TRUE),"") ->  | AF42: =IFERROR(_FV(AF6,"lattice constants",TRUE),"") -> 
W43: 470 | X43: 386.1
W44: 340 | X44: 626.5
V45: IUCr space group number | W45: =IFERROR(_FV(W6,"IUCr space group number",TRUE),"") -> 194 | X45: =IFERROR(_FV(X6,"IUCr space group number",TRUE),"") -> 194 | Y45: =IFERROR(_FV(Y6,"IUCr space group number",TRUE),"") ->  | Z45: =IFERROR(_FV(Z6,"IUCr space group number",TRUE),"") ->  | AA45: =IFERROR(_FV(AA6,"IUCr space group number",TRUE),"") ->  | AB45: =IFERROR(_FV(AB6,"IUCr space group number",TRUE),"") ->  | AC45: =IFERROR(_FV(AC6,"IUCr space group number",TRUE),"") ->  | AD45: =IFERROR(_FV(AD6,"IUCr space group number",TRUE),"") ->  | AE45: =IFERROR(_FV(AE6,"IUCr space group number",TRUE),"") ->  | AF45: =IFERROR(_FV(AF6,"IUCr space group number",TRUE),"") -> 
V47: Electromagnetic properties
V48: Volume magnetic susceptibility | W48: =IFERROR(_FV(W6,"volume magnetic susceptibility",TRUE),"") -> -0.000000002230 | X48: =IFERROR(_FV(X6,"volume magnetic susceptibility",TRUE),"") -> -0.000000006800 | Y48: =IFERROR(_FV(Y6,"volume magnetic susceptibility",TRUE),"") ->  | Z48: =IFERROR(_FV(Z6,"volume magnetic susceptibility",TRUE),"") ->  | AA48: =IFERROR(_FV(AA6,"volume magnetic susceptibility",TRUE),"") ->  | AB48: =IFERROR(_FV(AB6,"volume magnetic susceptibility",TRUE),"") ->  | AC48: =IFERROR(_FV(AC6,"volume magnetic susceptibility",TRUE),"") ->  | AD48: =IFERROR(_FV(AD6,"volume magnetic susceptibility",TRUE),"") ->  | AE48: =IFERROR(_FV(AE6,"volume magnetic susceptibility",TRUE),"") ->  | AF48: =IFERROR(_FV(AF6,"volume magnetic susceptibility",TRUE),"") -> 
V49: Mass magnetic susceptibility | W49: =IFERROR(_FV(W6,"mass magnetic susceptibility",TRUE),"") -> -0.00000002480 | X49: =IFERROR(_FV(X6,"mass magnetic susceptibility",TRUE),"") -> -0.00000000540 | Y49: =IFERROR(_FV(Y6,"mass magnetic susceptibility",TRUE),"") ->  | Z49: =IFERROR(_FV(Z6,"mass magnetic susceptibility",TRUE),"") ->  | AA49: =IFERROR(_FV(AA6,"mass magnetic susceptibility",TRUE),"") ->  | AB49: =IFERROR(_FV(AB6,"mass magnetic susceptibility",TRUE),"") ->  | AC49: =IFERROR(_FV(AC6,"mass magnetic susceptibility",TRUE),"") ->  | AD49: =IFERROR(_FV(AD6,"mass magnetic susceptibility",TRUE),"") ->  | AE49: =IFERROR(_FV(AE6,"mass magnetic susceptibility",TRUE),"") ->  | AF49: =IFERROR(_FV(AF6,"mass magnetic susceptibility",TRUE),"") -> 
V50: Molar magnetic susceptibility | W50: =IFERROR(_FV(W6,"molar magnetic susceptibility",TRUE),"") -> -0.00000000004999 | X50: =IFERROR(_FV(X6,"molar magnetic susceptibility",TRUE),"") -> -0.00000000015000 | Y50: =IFERROR(_FV(Y6,"molar magnetic susceptibility",TRUE),"") ->  | Z50: =IFERROR(_FV(Z6,"molar magnetic susceptibility",TRUE),"") ->  | AA50: =IFERROR(_FV(AA6,"molar magnetic susceptibility",TRUE),"") ->  | AB50: =IFERROR(_FV(AB6,"molar magnetic susceptibility",TRUE),"") ->  | AC50: =IFERROR(_FV(AC6,"molar magnetic susceptibility",TRUE),"") ->  | AD50: =IFERROR(_FV(AD6,"molar magnetic susceptibility",TRUE),"") ->  | AE50: =IFERROR(_FV(AE6,"molar magnetic susceptibility",TRUE),"") ->  | AF50: =IFERROR(_FV(AF6,"molar magnetic susceptibility",TRUE),"") -> 
V52: Discovery properties
V53: Discovery year | W53: =IFERROR(_FV(W$6,"discovery year",TRUE),"") -> 1766 | X53: =IFERROR(_FV(X$6,"discovery year",TRUE),"") -> 1772 | Y53: =IFERROR(_FV(Y$6,"discovery year",TRUE),"") ->  | Z53: =IFERROR(_FV(Z$6,"discovery year",TRUE),"") ->  | AA53: =IFERROR(_FV(AA$6,"discovery year",TRUE),"") ->  | AB53: =IFERROR(_FV(AB$6,"discovery year",TRUE),"") ->  | AC53: =IFERROR(_FV(AC$6,"discovery year",TRUE),"") ->  | AD53: =IFERROR(_FV(AD$6,"discovery year",TRUE),"") ->  | AE53: =IFERROR(_FV(AE$6,"discovery year",TRUE),"") ->  | AF53: =IFERROR(_FV(AF$6,"discovery year",TRUE),"") -> 
V54: Discovery country | W54: =IFERROR(_FV(_FV(W6,"discovery country",TRUE),"name"),"") -> United Kingdom | X54: =IFERROR(_FV(_FV(X6,"discovery country",TRUE),"name"),"") -> United Kingdom | Y54: =IFERROR(_FV(_FV(Y6,"discovery country",TRUE),"name"),"") ->  | Z54: =IFERROR(_FV(_FV(Z6,"discovery country",TRUE),"name"),"") ->  | AA54: =IFERROR(_FV(_FV(AA6,"discovery country",TRUE),"name"),"") ->  | AB54: =IFERROR(_FV(_FV(AB6,"discovery country",TRUE),"name"),"") ->  | AC54: =IFERROR(_FV(_FV(AC6,"discovery country",TRUE),"name"),"") ->  | AD54: =IFERROR(_FV(_FV(AD6,"discovery country",TRUE),"name"),"") ->  | AE54: =IFERROR(_FV(_FV(AE6,"discovery country",TRUE),"name"),"") ->  | AF54: =IFERROR(_FV(_FV(AF6,"discovery country",TRUE),"name"),"") -> 
V55: Discoverers | W55: =IFERROR(_FV(_FV(W6,"discoverers"),"full name",TRUE),"") -> Henry Cavendish | X55: =IFERROR(_FV(_FV(X6,"discoverers"),"full name",TRUE),"") -> Daniel Rutherford | Y55: =IFERROR(_FV(_FV(Y6,"discoverers"),"full name",TRUE),"") ->  | Z55: =IFERROR(_FV(_FV(Z6,"discoverers"),"full name",TRUE),"") ->  | AA55: =IFERROR(_FV(_FV(AA6,"discoverers"),"full name",TRUE),"") ->  | AB55: =IFERROR(_FV(_FV(AB6,"discoverers"),"full name",TRUE),"") ->  | AC55: =IFERROR(_FV(_FV(AC6,"discoverers"),"full name",TRUE),"") ->  | AD55: =IFERROR(_FV(_FV(AD6,"discoverers"),"full name",TRUE),"") ->  | AE55: =IFERROR(_FV(_FV(AE6,"discoverers"),"full name",TRUE),"") ->  | AF55: =IFERROR(_FV(_FV(AF6,"discoverers"),"full name",TRUE),"") -> 
X56: Antoine‐Laurent de Lavoisier

Sheet Practice
B3: Show your understanding
B4: Practice on some basic periodic table and chemical questions.
B5: Element questions
B7: Which elements have the following symbols? | F7: Name 3 elements in the D block.
A8: =IF(C9,2,IF(C8<>"",1,0)) -> 0 | B8: H | E8: =IF(G9,2,IF(G8<>"",1,0)) -> 0 | F8: 1
C9: =IFERROR(IF(_FV(_xlfn.XLOOKUP($C$8,_FV(Table1[Element],"name"), Table1[Element],FALSE),"atomic symbol",TRUE)=$B$8,TRUE,FALSE),FALSE) -> FALSE | G9: =IFERROR(IF(_FV(_xlfn.XLOOKUP(G8,_FV(Table1[Element],"NAME"),Table1[Element],FALSE),"block")="d",TRUE,FALSE),FALSE) -> FALSE
A10: =IF(C11,2,IF(C10<>"",1,0)) -> 0 | B10: Ni | E10: =IF(G11,2,IF(G10<>"",1,0)) -> 0 | F10: 2
C11: =IFERROR(IF(_FV(_xlfn.XLOOKUP(C10,_FV(Table1[Element],"name"), Table1[Element],FALSE),"atomic symbol",TRUE)=B10,TRUE,FALSE),FALSE) -> FALSE | G11: =IFERROR(IF(_FV(_xlfn.XLOOKUP(G10,_FV(Table1[Element],"NAME"),Table1[Element],FALSE),"block")="d",TRUE,FALSE),FALSE) -> FALSE
A12: =IF(C13,2,IF(C12<>"",1,0)) -> 0 | B12: Rn | E12: =IF(G13,2,IF(G12<>"",1,0)) -> 0 | F12: 3
C13: =IFERROR(IF(_FV(_xlfn.XLOOKUP(C12,_FV(Table1[Element],"name"), Table1[Element],FALSE),"atomic symbol",TRUE)=B12,TRUE,FALSE),FALSE) -> FALSE | G13: =IFERROR(IF(_FV(_xlfn.XLOOKUP(G12,_FV(Table1[Element],"NAME"),Table1[Element],FALSE),"block")="d",TRUE,FALSE),FALSE) -> FALSE
B15: Which elements have the following atomic numbers? | E15: =IF(SUM(E16:E20)<>6,"","👏") ->  | F15: Name 3 elements that are commonly found in humans.
A16: =IF(C17,2,IF(C16<>"",1,0)) -> 0 | B16: 13 | E16: =IF(G17,2,IF(G16<>"",1,0)) -> 0 | F16: 1
C17: =IFERROR(IF(_FV(_xlfn.XLOOKUP(C16,_FV(Table1[Element],"NAME"),Table1[Element],FALSE),"atomic number",TRUE)=B16,TRUE,FALSE),FALSE) -> FALSE | G17: =IFERROR(IF(_FV(_xlfn.XLOOKUP(G16,_FV(Table1[Element],"NAME"),Table1[Element],FALSE),"human abundance",TRUE)>1,TRUE,FALSE),FALSE) -> FALSE
A18: =IF(C19,2,IF(C18<>"",1,0)) -> 0 | B18: 79 | E18: =IF(G19,2,IF(G18<>"",1,0)) -> 0 | F18: 2
C19: =IFERROR(IF(_FV(_xlfn.XLOOKUP(C18,_FV(Table1[Element],"NAME"),Table1[Element],FALSE),"atomic number",TRUE)=B18,TRUE,FALSE),FALSE) -> FALSE | G19: =IFERROR(IF(_FV(_xlfn.XLOOKUP(G18,_FV(Table1[Element],"NAME"),Table1[Element],FALSE),"human abundance",TRUE)>1,TRUE,FALSE),FALSE) -> FALSE
A20: =IF(C21,2,IF(C20<>"",1,0)) -> 0 | B20: 90 | E20: =IF(G21,2,IF(G20<>"",1,0)) -> 0 | F20: 3
C21: =IFERROR(IF(_FV(_xlfn.XLOOKUP(C20,_FV(Table1[Element],"NAME"),Table1[Element],FALSE),"atomic number",TRUE)=B20,TRUE,FALSE),FALSE) -> FALSE | G21: =IFERROR(IF(_FV(_xlfn.XLOOKUP(G20,_FV(Table1[Element],"NAME"),Table1[Element],FALSE),"human abundance",TRUE)>1,TRUE,FALSE),FALSE) -> FALSE
B23: Chemical questions
B25: Name the chemicals based on the structure diagram and calculate their molar mass.
C27: =_FV(C26,"structure diagram",TRUE) ->  | G27: =_FV(G26,"structure diagram",TRUE) -> 
A29: =IF(C30,2,IF(C29<>"",1,0)) -> 0 | B29: Name | E29: =IF(G30,2,IF(G29<>"",1,0)) -> 0 | F29: Name
C30: =IF(C29=_FV(C26,"name"),TRUE,FALSE) -> FALSE | G30: =IF(G29=_FV(G26,"name"),TRUE,FALSE) -> FALSE
A31: =IF(C32,2,IF(C31<>"",1,0)) -> 0 | B31: Molar mass | E31: =IF(G32,2,IF(G31<>"",1,0)) -> 0 | F31: Molar mass
C32: =IF(C31=_FV(C26,"molar mass",TRUE),TRUE,FALSE) -> FALSE | G32: =IF(G31=_FV(G26,"molar mass",TRUE),TRUE,FALSE) -> FALSE

Sheet Do more
B3: Do more with data types
B4: With linked data types, you can insert and work with reliable data from trusted online data sources. Microsoft has partnered with Wolfram to provide rich, interesting facts and data on numerous subjects that you can use and refresh—all without leaving Excel.
B5: Here's how to use data types using the Space data type as an example.
B6: ❶ | C6: Type Earth in the cell below.
C8: You can type other names for the same thing. For example, you can type Planet Earth if you want.
B10: ❷ | C10: With the cell above selected, go to the Data tab and in the Data Type Gallery menu, select the Space icon.
C11: If Excel doesn't recognize the planet, you'll get the option to search for the correct one or try another.
B14: ❸ | C14: Select the Insert Data icon that appears on the right of the cell to see a list of data options. Choose one or more options to add them to the sheet.
C17: And you're done! Your sheet will populate with all the facts and information you need directly from Excel.
C18: Check out this article to learn even more about data types
